{"text_format":"1","workbook":"xlsx","n_sheets":43,"sheets":["001suel","001","002 GLA","003","004","005","006","007 GLA","008","009","010 GLA","011 GLA","012","013 GLA","014","015 GLA","016 GLA","017","018","019","020 GLA","021","022","023","024","025 GLA","026","027 GLA","028 GLA","029","030","031","032","033","034","035","036","037 GLA","038 GLA","039","040","041","TRANSFERENCIA"],"not_rendered":{"charts":0,"images":2,"macros":1,"external_links":0,"defined_names":17,"comments":0,"pivot_tables":0},"unopened":[],"bounds":{"document_bytes":16777216,"sheet_cells":100000,"rows_first":2000,"rows_last":500,"rows_between":2000,"halvings":0,"cell_chars":16384,"cell_head_chars":4096},"cells_cut":0,"cells_raw":0,"read":"whole","date_system":"1900"}

{"sheet":"001suel","index":0,"n_rows":49,"n_cols":8,"rows_kept":49,"cut":false,"hidden":true,"merged":[[8,0,8,2],[8,5,8,7],[10,0,10,2],[1,0,4,1],[1,2,4,5],[1,6,1,7],[2,6,2,7],[6,0,6,1],[6,6,6,7],[12,0,12,7],[13,1,13,7],[26,5,26,6],[15,5,15,6],[16,5,16,6],[17,5,17,6],[18,5,18,6],[19,5,19,6],[20,5,20,6],[21,5,21,6],[14,0,14,7],[22,5,22,6],[23,5,23,6],[24,5,24,6],[25,5,25,6],[38,5,38,6],[27,0,27,4],[27,5,27,6],[29,0,29,7],[30,5,30,6],[31,5,31,6],[37,5,37,6],[32,5,32,6],[33,5,33,6],[34,5,34,6],[35,5,35,6],[36,5,36,6],[44,1,44,7],[45,0,45,7],[46,0,47,7],[48,0,49,7],[39,5,39,6],[40,5,40,6],[41,5,41,6],[42,5,42,6],[43,0,43,4],[43,5,43,6]]}
[]
[null,null,"POA 2016 TRANSFERENCIA DE RECURSOS",null,null,null,"Procedimiento"]
[null,null,null,null,null,null,"Código : CPR-P01-F04"]
[null,null,null,null,null,null,"Revisión : ","Página 1de 1"]
[]
[]
["Fecha:   ",null,"2016-01-22",null,null,"No. de Transferencia:","UTC/SV/001/2016"]
[]
["Nombre de la Unidad Responsable:",null,null,null,null,"SECRETARIA DE VINCULACION"]
[]
["Monto Total Solicitado: ",null,null,null,null,{"$f":"H44","v":739}]
[]
["DESCRIPCIÓN DE LA APLICACIÓN SOLICITADA."]
[]
["Origen de los recursos:"]
["REF.","PROCESO","PARTIDA","MES","FINANCIAMIENTO","NOMBRE DE LA PARTIDA PRESUPUESTAL",null,"IMPORTE"]
[1,"1902E0424121",2111,"ENERO","FEDERAL ","PAPELERIA Y CONSUMIBLES DE OFICINA",null,739]
[]
[]
[]
[]
[]
[]
[]
[]
[]
[]
[null,null,null,null,null,"SUMA TOTAL A TRANSFERIR",null,{"$f":"SUM(H17:H27)","v":739}]
[]
["Destino de recursos:"]
["REF.","PROCESO","PARTIDA","MES","RECURSO","NOMBRE DE LA PARTIDA PRESUPUESTAL",null,"IMPORTE"]
[1,"1902E0424121",2214,"ENERO","FEDERAL","ALIMENTACION DE PERSONAS POR EL DESARROLLO DE OTROS PROGRAMAS INSTITUCIONALES",null,739]
[]
[]
[]
[]
[]
[]
[]
[]
[]
[]
[]
[null,null,null,null,null,"SUMA TOTAL A TRANSFERIR",null,{"$f":"SUM(H32:H43)","v":739}]
[]
["JUSTIFICACIÓN: "]
["SE REQUIERE SOLVENTAR LA SOLICITUD UTC/DV/001/2016 PARA EL PAGO DE LA CENA CON DIRECTIVOS DE LA UNIVERSIDAD NBC. BESSIERES DE PARIS."]
[]
["REQUISITOS: La información solicitada en este formato deberá presentarse en forma completa atendiendo a lo requerido en cada uno de los recuadros señalados. Se deben incluir los anexos."]

{"sheet":"001","index":1,"n_rows":49,"n_cols":8,"rows_kept":49,"cut":false,"hidden":true,"merged":[[44,1,44,7],[45,0,45,7],[46,0,47,7],[48,0,49,7],[39,5,39,6],[40,5,40,6],[41,5,41,6],[42,5,42,6],[43,0,43,2],[43,5,43,6],[38,5,38,6],[27,0,27,2],[27,5,27,6],[29,0,29,7],[30,5,30,6],[31,5,31,6],[32,5,32,6],[33,5,33,6],[34,5,34,6],[35,5,35,6],[36,5,36,6],[37,5,37,6],[26,5,26,6],[15,5,15,6],[16,5,16,6],[17,5,17,6],[18,5,18,6],[19,5,19,6],[20,5,20,6],[21,5,21,6],[22,5,22,6],[23,5,23,6],[24,5,24,6],[25,5,25,6],[1,0,4,1],[1,2,4,5],[1,6,1,7],[2,6,2,7],[6,0,6,1],[6,6,6,7],[14,0,14,7],[8,0,8,2],[8,5,8,7],[10,0,10,2],[12,0,12,7],[13,1,13,7]]}
[]
[null,null,"POA 2016 TRANSFERENCIA DE RECURSOS",null,null,null,"Procedimiento"]
[null,null,null,null,null,null,"Código : CPR-P01-F04"]
[null,null,null,null,null,null,"Revisión : ","Página 1de 1"]
[]
[]
["Fecha:   ",null,"2016-01-22",null,null,"No. de Transferencia:","UTC/SV/DEC/001/2016"]
[]
["Nombre de la Unidad Responsable:",null,null,null,null,"SECRETARÍA DE VINCULACIÓN"]
[]
["Monto Total Solicitado: ",null,null,null,null,1063.72]
[]
["DESCRIPCIÓN DE LA APLICACIÓN SOLICITADA."]
[]
["Origen de los recursos:"]
["REF.","PROCESO","PARTIDA","MES","FINANCIAMIENTO","NOMBRE DE LA PARTIDA PRESUPUESTAL",null,"IMPORTE"]
[1,"1902E0425219",3751,"ENE","FEDERAL ","VIÁTICOS EN EL PAÍS",null,1063.72]
[]
[]
[]
[]
[]
[]
[]
[]
[]
[]
[null,null,null,null,null,"SUMA TOTAL A TRANSFERIR",null,{"$f":"SUM(H17:H27)","v":1063.72}]
[]
["Destino de recursos:"]
["REF.","PROCESO","PARTIDA","MES","RECURSO","NOMBRE DE LA PARTIDA PRESUPUESTAL",null,"IMPORTE"]
[1,"1902E0425219",3581,"ENE","FEDERAL","SERVICIO DE LIMPIEZA Y MANEJO DE DESECHOS",null,1063.72]
[]
[]
[]
[]
[]
[]
[]
[]
[]
[]
[]
[null,null,null,null,null,"SUMA TOTAL A TRANSFERIR",null,{"$f":"SUM(H32:H43)","v":1063.72}]
[]
["JUSTIFICACIÓN: PARA DAR SUFICIENCIA A LA SOLICITUD DV/DEC/002/2016."]
[]
[]
["REQUISITOS: La información solicitada en este formato deberá presentarse en forma completa atendiendo a lo requerido en cada uno de los recuadros señalados. Se deben incluir los anexos."]

{"sheet":"002 GLA","index":2,"n_rows":49,"n_cols":8,"rows_kept":49,"cut":false,"hidden":true,"merged":[[44,1,44,7],[45,0,45,7],[46,0,47,7],[48,0,49,7],[39,5,39,6],[40,5,40,6],[41,5,41,6],[42,5,42,6],[43,0,43,2],[43,5,43,6],[38,5,38,6],[27,0,27,2],[27,5,27,6],[29,0,29,7],[30,5,30,6],[31,5,31,6],[32,5,32,6],[33,5,33,6],[34,5,34,6],[35,5,35,6],[36,5,36,6],[37,5,37,6],[26,5,26,6],[15,5,15,6],[16,5,16,6],[17,5,17,6],[18,5,18,6],[19,5,19,6],[20,5,20,6],[21,5,21,6],[22,5,22,6],[23,5,23,6],[24,5,24,6],[25,5,25,6],[1,0,4,1],[1,2,4,5],[1,6,1,7],[2,6,2,7],[6,0,6,1],[6,6,6,7],[14,0,14,7],[8,0,8,2],[8,5,8,7],[10,0,10,2],[12,0,12,7],[13,1,13,7]]}
[]
[null,null,"POA 2016 TRANSFERENCIA DE RECURSOS",null,null,null,"Procedimiento"]
[null,null,null,null,null,null,"Código : CPR-P01-F04"]
[null,null,null,null,null,null,"Revisión : ","Página 1de 1"]
[]
[]
["Fecha:   ",null,"2016-01-28",null,null,"No. de Transferencia:","UTC/SV/DEC/002/2016"]
[]
["Nombre de la Unidad Responsable:",null,null,null,null,"SECRETARÍA DE VINCULACIÓN"]
[]
["Monto Total Solicitado: ",null,null,null,null,809.16]
[]
["DESCRIPCIÓN DE LA APLICACIÓN SOLICITADA."]
[]
["Origen de los recursos:"]
["REF.","PROCESO","PARTIDA","MES","FINANCIAMIENTO","NOMBRE DE LA PARTIDA PRESUPUESTAL",null,"IMPORTE"]
[1,"1902E0425219",3711,"ENE","FEDERAL","PASAJES AEREOS NACIONALES",null,809.16]
[]
[]
[]
[]
[]
[]
[]
[]
[]
[]
[null,null,null,null,null,"SUMA TOTAL A TRANSFERIR",null,{"$f":"SUM(H17:H27)","v":809.16}]
[]
["Destino de recursos:"]
["REF.","PROCESO","PARTIDA","MES","RECURSO","NOMBRE DE LA PARTIDA PRESUPUESTAL",null,"IMPORTE"]
[1,"1902E0425219",3181,"ENE","FEDERAL ","SERVICIOS POSTALES Y TELEGRÁFICOS",null,809.16]
[]
[]
[]
[]
[]
[]
[]
[]
[]
[]
[]
[null,null,null,null,null,"SUMA TOTAL A TRANSFERIR",null,{"$f":"SUM(H32:H43)","v":809.16}]
[]
["JUSTIFICACIÓN: PARA DAR SUFICIENCIA A LA SOLICITUD DV/DEC/003/2016."]
[]
[]
["REQUISITOS: La información solicitada en este formato deberá presentarse en forma completa atendiendo a lo requerido en cada uno de los recuadros señalados. Se deben incluir los anexos."]

{"sheet":"003","index":3,"n_rows":49,"n_cols":8,"rows_kept":49,"cut":false,"hidden":true,"merged":[[8,0,8,2],[8,5,8,7],[10,0,10,2],[1,0,4,1],[1,2,4,5],[1,6,1,7],[2,6,2,7],[6,0,6,1],[6,6,6,7],[12,0,12,7],[13,1,13,7],[26,5,26,6],[15,5,15,6],[16,5,16,6],[17,5,17,6],[18,5,18,6],[19,5,19,6],[20,5,20,6],[21,5,21,6],[14,0,14,7],[22,5,22,6],[23,5,23,6],[24,5,24,6],[25,5,25,6],[38,5,38,6],[27,0,27,2],[27,5,27,6],[29,0,29,7],[30,5,30,6],[31,5,31,6],[37,5,37,6],[32,5,32,6],[33,5,33,6],[34,5,34,6],[35,5,35,6],[36,5,36,6],[44,1,44,7],[45,0,45,7],[46,0,47,7],[48,0,49,7],[39,5,39,6],[40,5,40,6],[41,5,41,6],[42,5,42,6],[43,0,43,2],[43,5,43,6]]}
[]
[null,null,"POA 2016 TRANSFERENCIA DE RECURSOS",null,null,null,"Procedimiento"]
[null,null,null,null,null,null,"Código : CPR-P01-F04"]
[null,null,null,null,null,null,"Revisión : ","Página 1de 1"]
[]
[]
["Fecha:   ",null,"2016-02-05",null,null,"No. de Transferencia:","UTC/SV/DEC/003/2016"]
[]
["Nombre de la Unidad Responsable:",null,null,null,null,"SECRETARÍA DE VINCULACIÓN"]
[]
["Monto Total Solicitado: ",null,null,null,null,12158]
[]
["DESCRIPCIÓN DE LA APLICACIÓN SOLICITADA."]
[]
["Origen de los recursos:"]
["REF.","PROCESO","PARTIDA","MES","FINANCIAMIENTO","NOMBRE DE LA PARTIDA PRESUPUESTAL",null,"IMPORTE"]
[1,"PP-VIN-INTERN-16",3831,"FEB","PRODUCTIVO","CONGRESOS Y CONVENCIONES",null,12158]
[]
[]
[]
[]
[]
[]
[]
[]
[]
[]
[null,null,null,null,null,"SUMA TOTAL A TRANSFERIR",null,{"$f":"SUM(H17:H27)","v":12158}]
[]
["Destino de recursos:"]
["REF.","PROCESO","PARTIDA","MES","RECURSO","NOMBRE DE LA PARTIDA PRESUPUESTAL",null,"IMPORTE"]
[1,"PP-VIN-INTERN-16",3821,"FEB","PRODUCTIVO","GASTOS DE ORDEN SOCIAL Y CULTURAL",null,12158]
[]
[]
[]
[]
[]
[]
[]
[]
[]
[]
[]
[null,null,null,null,null,"SUMA TOTAL A TRANSFERIR",null,{"$f":"SUM(H32:H43)","v":12158}]
[]
["JUSTIFICACIÓN: PARA DAR SUFICIENCIA A LA SOLICITUD DV/DEC/022/2016.(COMPRA DE ENTRADAS A XOXIMILCO ALUMNOS DE INTERCAMBIO)"]
[]
[]
["REQUISITOS: La información solicitada en este formato deberá presentarse en forma completa atendiendo a lo requerido en cada uno de los recuadros señalados. Se deben incluir los anexos."]

{"sheet":"004","index":4,"n_rows":49,"n_cols":8,"rows_kept":49,"cut":false,"hidden":true,"merged":[[8,0,8,2],[8,5,8,7],[10,0,10,2],[1,0,4,1],[1,2,4,5],[1,6,1,7],[2,6,2,7],[6,0,6,1],[6,6,6,7],[12,0,12,7],[13,1,13,7],[26,5,26,6],[15,5,15,6],[16,5,16,6],[17,5,17,6],[18,5,18,6],[19,5,19,6],[20,5,20,6],[21,5,21,6],[14,0,14,7],[22,5,22,6],[23,5,23,6],[24,5,24,6],[25,5,25,6],[38,5,38,6],[27,0,27,2],[27,5,27,6],[29,0,29,7],[30,5,30,6],[31,5,31,6],[37,5,37,6],[32,5,32,6],[33,5,33,6],[34,5,34,6],[35,5,35,6],[36,5,36,6],[44,1,44,7],[45,0,45,7],[46,0,47,7],[48,0,49,7],[39,5,39,6],[40,5,40,6],[41,5,41,6],[42,5,42,6],[43,0,43,2],[43,5,43,6]]}
[]
[null,null,"POA 2016 TRANSFERENCIA DE RECURSOS",null,null,null,"Procedimiento"]
[null,null,null,null,null,null,"Código : CPR-P01-F04"]
[null,null,null,null,null,null,"Revisión : ","Página 1de 1"]
[]
[]
["Fecha:   ",null,"2016-02-08",null,null,"No. de Transferencia:","UTC/SV/DEC/004/2016"]
[]
["Nombre de la Unidad Responsable:",null,null,null,null,"SECRETARÍA DE VINCULACIÓN"]
[]
["Monto Total Solicitado: ",null,null,null,null,20000]
[]
["DESCRIPCIÓN DE LA APLICACIÓN SOLICITADA."]
[]
["Origen de los recursos:"]
["REF.","PROCESO","PARTIDA","MES","FINANCIAMIENTO","NOMBRE DE LA PARTIDA PRESUPUESTAL",null,"IMPORTE"]
[1,"IP-VIN-MOV-INT-16",3821,"AGO","PROPIOS","GASTOS DE ÓRDEN SOCIAL Y CULTURAL",null,20000]
[]
[]
[]
[]
[]
[]
[]
[]
[]
[]
[null,null,null,null,null,"SUMA TOTAL A TRANSFERIR",null,{"$f":"SUM(H17:H27)","v":20000}]
[]
["Destino de recursos:"]
["REF.","PROCESO","PARTIDA","MES","RECURSO","NOMBRE DE LA PARTIDA PRESUPUESTAL",null,"IMPORTE"]
[1,"IP-VIN-MOV-INT-16",3712,"FEB.","PROPIOS","PASAJES AEREOS INTERNACIONALES",null,2000]
[2,"IP-VIN-MOV-INT-16",3921,"FEB.","PROPIOS","IMPUESTOS Y DERECHOS",null,18000]
[]
[]
[]
[]
[]
[]
[]
[]
[]
[]
[null,null,null,null,null,"SUMA TOTAL A TRANSFERIR",null,{"$f":"SUM(H32:H43)","v":20000}]
[]
["JUSTIFICACIÓN: PARA DAR SUFICIENCIA A LA SOLICITUD DV/DEC/023/033/2016.(COMPRA DE BOLETO AEREO INTERNACIONAL AL PROF. LEONEL Y PAGO MEMBRESIA UDUAL)"]
[]
[]
["REQUISITOS: La información solicitada en este formato deberá presentarse en forma completa atendiendo a lo requerido en cada uno de los recuadros señalados. Se deben incluir los anexos."]

{"sheet":"005","index":5,"n_rows":49,"n_cols":8,"rows_kept":49,"cut":false,"hidden":true,"merged":[[8,0,8,2],[8,5,8,7],[10,0,10,2],[1,0,4,1],[1,2,4,5],[1,6,1,7],[2,6,2,7],[6,0,6,1],[6,6,6,7],[12,0,12,7],[13,1,13,7],[26,5,26,6],[15,5,15,6],[16,5,16,6],[17,5,17,6],[18,5,18,6],[19,5,19,6],[20,5,20,6],[21,5,21,6],[14,0,14,7],[22,5,22,6],[23,5,23,6],[24,5,24,6],[25,5,25,6],[38,5,38,6],[27,0,27,2],[27,5,27,6],[29,0,29,7],[30,5,30,6],[31,5,31,6],[37,5,37,6],[32,5,32,6],[33,5,33,6],[34,5,34,6],[35,5,35,6],[36,5,36,6],[44,1,44,7],[45,0,45,7],[46,0,47,7],[48,0,49,7],[39,5,39,6],[40,5,40,6],[41,5,41,6],[42,5,42,6],[43,0,43,2],[43,5,43,6]]}
[]
[null,null,"POA 2016 TRANSFERENCIA DE RECURSOS",null,null,null,"Procedimiento"]
[null,null,null,null,null,null,"Código : CPR-P01-F04"]
[null,null,null,null,null,null,"Revisión : ","Página 1de 1"]
[]
[]
["Fecha:   ",null,"2016-02-09",null,null,"No. de Transferencia:","UTC/SV/DEC/005/2016"]
[]
["Nombre de la Unidad Responsable:",null,null,null,null,"SECRETARÍA DE VINCULACIÓN"]
[]
["Monto Total Solicitado: ",null,null,null,null,350]
[]
["DESCRIPCIÓN DE LA APLICACIÓN SOLICITADA."]
[]
["Origen de los recursos:"]
["REF.","PROCESO","PARTIDA","MES","FINANCIAMIENTO","NOMBRE DE LA PARTIDA PRESUPUESTAL",null,"IMPORTE"]
[1,"1902E0425219",2111,"FEB","FEDERAL","PAPELERÍA Y CONSUMIBLES DE OFICINA",null,50]
[2,"1902E0425219",2111,"MAR","FEDERAL","PAPELERÍA Y CONSUMIBLES DE OFICINA",null,100]
[3,"1902E0425219",2111,"ABRIL","FEDERAL","PAPELERÍA Y CONSUMIBLES DE OFICINA",null,100]
[4,"1902E0425219",2111,"MAYO","FEDERAL","PAPELERÍA Y CONSUMIBLES DE OFICINA",null,100]
[]
[]
[]
[]
[]
[]
[]
[null,null,null,null,null,"SUMA TOTAL A TRANSFERIR",null,{"$f":"SUM(H17:H27)","v":350}]
[]
["Destino de recursos:"]
["REF.","PROCESO","PARTIDA","MES","RECURSO","NOMBRE DE LA PARTIDA PRESUPUESTAL",null,"IMPORTE"]
[1,"1902E0425219",2112,"FEB","FEDERAL","ÚTILES ARTÍCULOS Y HERRAMIENTAS MENORES DE OFICINA",null,50]
[2,"1902E0425219",2112,"FEB","FEDERAL","ÚTILES ARTÍCULOS Y HERRAMIENTAS MENORES DE OFICINA",null,100]
[3,"1902E0425219",2112,"FEB","FEDERAL","ÚTILES ARTÍCULOS Y HERRAMIENTAS MENORES DE OFICINA",null,100]
[4,"1902E0425219",2112,"FEB","FEDERAL","ÚTILES ARTÍCULOS Y HERRAMIENTAS MENORES DE OFICINA",null,100]
[]
[]
[]
[]
[]
[]
[]
[]
[null,null,null,null,null,"SUMA TOTAL A TRANSFERIR",null,{"$f":"SUM(H32:H43)","v":350}]
[]
["JUSTIFICACIÓN: PARA DAR SUFICIENCIA A LA SOLICITUD DV/DEC/035/2016.(COMPRA DE SELLO DE GOMA)"]
[]
[]
["REQUISITOS: La información solicitada en este formato deberá presentarse en forma completa atendiendo a lo requerido en cada uno de los recuadros señalados. Se deben incluir los anexos."]

{"sheet":"006","index":6,"n_rows":45,"n_cols":8,"rows_kept":45,"cut":false,"hidden":true,"merged":[[8,0,8,2],[8,5,8,7],[10,0,10,2],[1,0,4,1],[1,2,4,5],[1,6,1,7],[2,6,2,7],[6,0,6,1],[6,6,6,7],[12,0,12,7],[13,1,13,7],[26,5,26,6],[15,5,15,6],[16,5,16,6],[17,5,17,6],[18,5,18,6],[19,5,19,6],[20,5,20,6],[21,5,21,6],[14,0,14,7],[34,5,34,6],[22,5,22,6],[23,5,23,6],[24,5,24,6],[25,5,25,6],[29,0,29,7],[30,5,30,6],[31,5,31,6],[32,5,32,6],[33,5,33,6],[27,0,27,2],[27,5,27,6],[35,5,35,6],[40,1,40,7],[41,0,41,7],[42,0,43,7],[44,0,45,7],[36,5,36,6],[37,5,37,6],[38,5,38,6],[39,0,39,2],[39,5,39,6]]}
[]
[null,null,"POA 2016 TRANSFERENCIA DE RECURSOS",null,null,null,"Procedimiento"]
[null,null,null,null,null,null,"Código : CPR-P01-F04"]
[null,null,null,null,null,null,"Revisión : ","Página 1de 1"]
[]
[]
["Fecha:   ",null,"2016-02-15",null,null,"No. de Transferencia:","UTC/SV/DEC/005/2016"]
[]
["Nombre de la Unidad Responsable:",null,null,null,null,"SECRETARÍA DE VINCULACIÓN"]
[]
["Monto Total Solicitado: ",null,null,null,null,25288]
[]
["DESCRIPCIÓN DE LA APLICACIÓN SOLICITADA."]
[]
["Origen de los recursos:"]
["REF.","PROCESO","PARTIDA","MES","FINANCIAMIENTO","NOMBRE DE LA PARTIDA PRESUPUESTAL",null,"IMPORTE"]
[1,"PP-VIN-INTERN-2016",3622,"ENE","PRODUCTIVO","ARTÍCULOS PROMOCIONALES",null,20000]
[2,"PP-VIN-INTERN-2016",3341,"MAYO","PRODUCTIVO","SERVICIOS DE CAPACITACIÓN",null,5288]
[]
[]
[]
[]
[]
[]
[]
[]
[]
[null,null,null,null,null,"SUMA TOTAL A TRANSFERIR",null,{"$f":"SUM(H17:H27)","v":25288}]
[]
["Destino de recursos:"]
["REF.","PROCESO","PARTIDA","MES","RECURSO","NOMBRE DE LA PARTIDA PRESUPUESTAL",null,"IMPORTE"]
[1,"PP-VIN-INTERN-2016",3611,"FEB.","PRODUCTIVO","DIFUSIÓN POR RADIO, TV Y OTROS MEDIOS DE MENSAJES S/PROG. Y ACTIVIDADES GUBERNAMENTALES",null,20000]
[2,"PP-VIN-INTERN-2016",3611,"FEB.","PRODUCTIVO","DIFUSIÓN POR RADIO, TV Y OTROS MEDIOS DE MENSAJES S/PROG. Y ACTIVIDADES GUBERNAMENTALES",null,5288]
[]
[]
[]
[]
[]
[]
[null,null,null,null,null,"SUMA TOTAL A TRANSFERIR",null,{"$f":"SUM(H32:H39)","v":25288}]
[]
["JUSTIFICACIÓN: PARA DAR SUFICIENCIA A LA SOLICITUD DV/DEC/037/2016.(VIDEO PROMOCIONAL PARA ALUMNOS INTERNACIONALES)"]
[]
[]
["REQUISITOS: La información solicitada en este formato deberá presentarse en forma completa atendiendo a lo requerido en cada uno de los recuadros señalados. Se deben incluir los anexos."]

{"sheet":"007 GLA","index":7,"n_rows":45,"n_cols":8,"rows_kept":45,"cut":false,"hidden":true,"merged":[[8,0,8,2],[8,5,8,7],[10,0,10,2],[1,0,4,1],[1,2,4,5],[1,6,1,7],[2,6,2,7],[6,0,6,1],[6,6,6,7],[12,0,12,7],[13,1,13,7],[26,5,26,6],[15,5,15,6],[16,5,16,6],[17,5,17,6],[18,5,18,6],[19,5,19,6],[20,5,20,6],[21,5,21,6],[14,0,14,7],[22,5,22,6],[23,5,23,6],[24,5,24,6],[25,5,25,6],[38,5,38,6],[27,0,27,2],[27,5,27,6],[29,0,29,7],[30,5,30,6],[31,5,31,6],[37,5,37,6],[32,5,32,6],[33,5,33,6],[34,5,34,6],[35,5,35,6],[36,5,36,6],[39,0,39,2],[39,5,39,6],[40,1,40,7],[44,0,45,7],[41,0,43,7]]}
[]
[null,null,"POA 2016 TRANSFERENCIA DE RECURSOS",null,null,null,"Procedimiento"]
[null,null,null,null,null,null,"Código : CPR-P01-F04"]
[null,null,null,null,null,null,"Revisión : ","Página 1de 1"]
[]
[]
["Fecha:   ",null,"2016-02-15",null,null,"No. de Transferencia:","UTC/SV/DEC/007/2016"]
[]
["Nombre de la Unidad Responsable:",null,null,null,null,"SECRETARÍA DE VINCULACIÓN"]
[]
["Monto Total Solicitado: ",null,null,null,null,800]
[]
["DESCRIPCIÓN DE LA APLICACIÓN SOLICITADA."]
[]
["Origen de los recursos:"]
["REF.","PROCESO","PARTIDA","MES","FINANCIAMIENTO","NOMBRE DE LA PARTIDA PRESUPUESTAL",null,"IMPORTE"]
[1,"PP-VIN-EDU-CONT-2016",2111,"ENE","PRODUCTIVO","PAPELERÍA Y CONSUMIBLES DE OFICINA",null,800]
[]
[]
[]
[]
[]
[]
[]
[]
[]
[]
[null,null,null,null,null,"SUMA TOTAL A TRANSFERIR",null,{"$f":"SUM(H17:H27)","v":800}]
[]
["Destino de recursos:"]
["REF.","PROCESO","PARTIDA","MES","RECURSO","NOMBRE DE LA PARTIDA PRESUPUESTAL",null,"IMPORTE"]
[1,"PP-VIN-EDU-CONT-2016",2941,"FEB.","PRODUCTIVO","REFACCIONES Y ACCESORIOS MENORES DE EQP DE CÓMPUTO",null,800]
[]
[]
[]
[]
[]
[]
[]
[null,null,null,null,null,"SUMA TOTAL A TRANSFERIR",null,{"$f":"SUM(H32:H39)","v":800}]
[]
["JUSTIFICACIÓN: PARA DAR SUFICIENCIA A LA SOLICITUD DV/DEC/039/2016.(COMPRA DE CABLES DE AUDIO Y VIDEO PARA LA SALA D-127 SALONES DE EDUCACIÓN CONTINUA)"]
[]
[]
["REQUISITOS: La información solicitada en este formato deberá presentarse en forma completa atendiendo a lo requerido en cada uno de los recuadros señalados. Se deben incluir los anexos."]

{"sheet":"008","index":8,"n_rows":45,"n_cols":8,"rows_kept":45,"cut":false,"hidden":true,"merged":[[8,0,8,2],[8,5,8,7],[10,0,10,2],[1,0,4,1],[1,2,4,5],[1,6,1,7],[2,6,2,7],[6,0,6,1],[6,6,6,7],[12,0,12,7],[13,1,13,7],[26,5,26,6],[15,5,15,6],[16,5,16,6],[17,5,17,6],[18,5,18,6],[19,5,19,6],[20,5,20,6],[21,5,21,6],[14,0,14,7],[22,5,22,6],[23,5,23,6],[24,5,24,6],[25,5,25,6],[38,5,38,6],[27,0,27,2],[27,5,27,6],[29,0,29,7],[30,5,30,6],[31,5,31,6],[37,5,37,6],[32,5,32,6],[33,5,33,6],[34,5,34,6],[35,5,35,6],[36,5,36,6],[39,0,39,2],[39,5,39,6],[40,1,40,7],[41,0,43,7],[44,0,45,7]]}
[]
[null,null,"POA 2016 TRANSFERENCIA DE RECURSOS",null,null,null,"Procedimiento"]
[null,null,null,null,null,null,"Código : CPR-P01-F04"]
[null,null,null,null,null,null,"Revisión : ","Página 1de 1"]
[]
[]
["Fecha:   ",null,"2016-02-19",null,null,"No. de Transferencia:","UTC/SV/DEC/008/2016"]
[]
["Nombre de la Unidad Responsable:",null,null,null,null,"SECRETARÍA DE VINCULACIÓN"]
[]
["Monto Total Solicitado: ",null,null,null,null,436]
[]
["DESCRIPCIÓN DE LA APLICACIÓN SOLICITADA."]
[]
["Origen de los recursos:"]
["REF.","PROCESO","PARTIDA","MES","FINANCIAMIENTO","NOMBRE DE LA PARTIDA PRESUPUESTAL",null,"IMPORTE"]
[1,"IP-VIN-MEXPROTEC-16",3711,"ENE.","PROPIOS","BOLETO AEREO NACIONAL",null,436]
[]
[]
[]
[]
[]
[]
[]
[]
[]
[]
[null,null,null,null,null,"SUMA TOTAL A TRANSFERIR",null,{"$f":"SUM(H17:H27)","v":436}]
[]
["Destino de recursos:"]
["REF.","PROCESO","PARTIDA","MES","RECURSO","NOMBRE DE LA PARTIDA PRESUPUESTAL",null,"IMPORTE"]
[1,"IP-VIN-MEXPROTEC-16",3721,"FEB.","PROPIOS","PASAJE TERRESTRE NACIONAL",null,436]
[]
[]
[]
[]
[]
[]
[]
[null,null,null,null,null,"SUMA TOTAL A TRANSFERIR",null,{"$f":"SUM(H32:H39)","v":436}]
[]
["JUSTIFICACIÓN: PARA DAR SUFICIENCIA A LA SOLICITUD DV/DEC/042/2016.(REEMBOLSO LIC. MARIANA /BOLETOS AUTOBUS MERIDA,GPO.MEXPROTEC)"]
[]
[]
["REQUISITOS: La información solicitada en este formato deberá presentarse en forma completa atendiendo a lo requerido en cada uno de los recuadros señalados. Se deben incluir los anexos."]

{"sheet":"009","index":9,"n_rows":45,"n_cols":8,"rows_kept":45,"cut":false,"hidden":true,"merged":[[44,0,45,7],[36,5,36,6],[37,5,37,6],[26,5,26,6],[27,0,27,2],[27,5,27,6],[29,0,29,7],[30,5,30,6],[31,5,31,6],[32,5,32,6],[38,5,38,6],[39,0,39,2],[39,5,39,6],[40,1,40,7],[41,0,43,7],[19,5,19,6],[20,5,20,6],[33,5,33,6],[34,5,34,6],[35,5,35,6],[21,5,21,6],[22,5,22,6],[23,5,23,6],[24,5,24,6],[25,5,25,6],[14,0,14,7],[15,5,15,6],[16,5,16,6],[17,5,17,6],[18,5,18,6],[1,0,4,1],[1,2,4,5],[1,6,1,7],[2,6,2,7],[6,0,6,1],[6,6,6,7],[8,0,8,2],[8,5,8,7],[10,0,10,2],[12,0,12,7],[13,1,13,7]]}
[]
[null,null,"POA 2016 TRANSFERENCIA DE RECURSOS",null,null,null,"Procedimiento"]
[null,null,null,null,null,null,"Código : CPR-P01-F04"]
[null,null,null,null,null,null,"Revisión : ","Página 1de 1"]
[]
[]
["Fecha:   ",null,"2016-02-16",null,null,"No. de Transferencia:","UTC/SV/DEC/009/2016"]
[]
["Nombre de la Unidad Responsable:",null,null,null,null,"SECRETARÍA DE VINCULACIÓN"]
[]
["Monto Total Solicitado: ",null,null,null,null,1130]
[]
["DESCRIPCIÓN DE LA APLICACIÓN SOLICITADA."]
[]
["Origen de los recursos:"]
["REF.","PROCESO","PARTIDA","MES","FINANCIAMIENTO","NOMBRE DE LA PARTIDA PRESUPUESTAL",null,"IMPORTE"]
[1,"IP-VIN-MOV-INT-16",3821,"AGO.","PROPIOS","GASTOS DE ÓRDEN SOCIAL Y CULTURAL",null,1130]
[]
[]
[]
[]
[]
[]
[]
[]
[]
[]
[null,null,null,null,null,"SUMA TOTAL A TRANSFERIR",null,{"$f":"SUM(H17:H27)","v":1130}]
[]
["Destino de recursos:"]
["REF.","PROCESO","PARTIDA","MES","RECURSO","NOMBRE DE LA PARTIDA PRESUPUESTAL",null,"IMPORTE"]
[1,"IP-VIN-MOV-INT-16",3921,"FEB.","PROPIOS","IMPUESTOS Y DERECHOS",null,1130]
[]
[]
[]
[]
[]
[]
[]
[null,null,null,null,null,"SUMA TOTAL A TRANSFERIR",null,{"$f":"SUM(H32:H39)","v":1130}]
[]
["JUSTIFICACIÓN: COMPLEMENTO A LA SOLICITUD DV/DEC/033/2016.(MEMBRESIA UDUAL)"]
[]
[]
["REQUISITOS: La información solicitada en este formato deberá presentarse en forma completa atendiendo a lo requerido en cada uno de los recuadros señalados. Se deben incluir los anexos."]

{"sheet":"010 GLA","index":10,"n_rows":45,"n_cols":8,"rows_kept":45,"cut":false,"hidden":true,"merged":[[44,0,45,7],[36,5,36,6],[37,5,37,6],[26,5,26,6],[27,0,27,2],[27,5,27,6],[29,0,29,7],[30,5,30,6],[31,5,31,6],[32,5,32,6],[38,5,38,6],[39,0,39,2],[39,5,39,6],[40,1,40,7],[41,0,43,7],[19,5,19,6],[20,5,20,6],[33,5,33,6],[34,5,34,6],[35,5,35,6],[21,5,21,6],[22,5,22,6],[23,5,23,6],[24,5,24,6],[25,5,25,6],[14,0,14,7],[15,5,15,6],[16,5,16,6],[17,5,17,6],[18,5,18,6],[1,0,4,1],[1,2,4,5],[1,6,1,7],[2,6,2,7],[6,0,6,1],[6,6,6,7],[8,0,8,2],[8,5,8,7],[10,0,10,2],[12,0,12,7],[13,1,13,7]]}
[]
[null,null,"POA 2016 TRANSFERENCIA DE RECURSOS",null,null,null,"Procedimiento"]
[null,null,null,null,null,null,"Código : CPR-P01-F04"]
[null,null,null,null,null,null,"Revisión : ","Página 1de 1"]
[]
[]
["Fecha:   ",null,"2016-02-19",null,null,"No. de Transferencia:","UTC/SV/DEC/010/2016"]
[]
["Nombre de la Unidad Responsable:",null,null,null,null,"SECRETARÍA DE VINCULACIÓN"]
[]
["Monto Total Solicitado: ",null,null,null,null,1000]
[]
["DESCRIPCIÓN DE LA APLICACIÓN SOLICITADA."]
[]
["Origen de los recursos:"]
["REF.","PROCESO","PARTIDA","MES","FINANCIAMIENTO","NOMBRE DE LA PARTIDA PRESUPUESTAL",null,"IMPORTE"]
[1,"1902E0425219",3341,"FEB","FEDERAL","SERVICIOS DE CAPACITACIÓN",null,1000]
[]
[]
[]
[]
[]
[]
[]
[]
[]
[]
[null,null,null,null,null,"SUMA TOTAL A TRANSFERIR",null,{"$f":"SUM(H17:H27)","v":1000}]
[]
["Destino de recursos:"]
["REF.","PROCESO","PARTIDA","MES","RECURSO","NOMBRE DE LA PARTIDA PRESUPUESTAL",null,"IMPORTE"]
[1,"1902E0425219",3181,"FEB.","FEDERAL","SERVICIOS POSTALES Y TELEGRÁFICOS",null,1000]
[]
[]
[]
[]
[]
[]
[]
[null,null,null,null,null,"SUMA TOTAL A TRANSFERIR",null,{"$f":"SUM(H32:H39)","v":1000}]
[]
["JUSTIFICACIÓN: COMPLEMENTO A LA SOLICITUD DV/DEC/045/2016. \n(ENVÍO A ECUADOR)"]
[]
[]
["REQUISITOS: La información solicitada en este formato deberá presentarse en forma completa atendiendo a lo requerido en cada uno de los recuadros señalados. Se deben incluir los anexos."]

{"sheet":"011 GLA","index":11,"n_rows":45,"n_cols":8,"rows_kept":45,"cut":false,"hidden":true,"merged":[[44,0,45,7],[36,5,36,6],[37,5,37,6],[26,5,26,6],[27,0,27,2],[27,5,27,6],[29,0,29,7],[30,5,30,6],[31,5,31,6],[32,5,32,6],[38,5,38,6],[39,0,39,2],[39,5,39,6],[40,1,40,7],[41,0,43,7],[19,5,19,6],[20,5,20,6],[33,5,33,6],[34,5,34,6],[35,5,35,6],[21,5,21,6],[22,5,22,6],[23,5,23,6],[24,5,24,6],[25,5,25,6],[14,0,14,7],[15,5,15,6],[16,5,16,6],[17,5,17,6],[18,5,18,6],[1,0,4,1],[1,2,4,5],[1,6,1,7],[2,6,2,7],[6,0,6,1],[6,6,6,7],[8,0,8,2],[8,5,8,7],[10,0,10,2],[12,0,12,7],[13,1,13,7]]}
[]
[null,null,"POA 2016 TRANSFERENCIA DE RECURSOS",null,null,null,"Procedimiento"]
[null,null,null,null,null,null,"Código : CPR-P01-F04"]
[null,null,null,null,null,null,"Revisión : ","Página 1de 1"]
[]
[]
["Fecha:   ",null,"2016-02-19",null,null,"No. de Transferencia:","UTC/SV/DEC/011/2016"]
[]
["Nombre de la Unidad Responsable:",null,null,null,null,"SECRETARÍA DE VINCULACIÓN"]
[]
["Monto Total Solicitado: ",null,null,null,null,5000]
[]
["DESCRIPCIÓN DE LA APLICACIÓN SOLICITADA."]
[]
["Origen de los recursos:"]
["REF.","PROCESO","PARTIDA","MES","FINANCIAMIENTO","NOMBRE DE LA PARTIDA PRESUPUESTAL",null,"IMPORTE"]
[1,"PP-VIN-EDU-CONT-2016",2214,"FEB","PRODUCTIVO","ALIMENTACIÓN DE PNAS POR EL DESARROLLO DE OTROS PROG INSTITUCIONALES",null,5000]
[]
[]
[]
[]
[]
[]
[]
[]
[]
[]
[null,null,null,null,null,"SUMA TOTAL A TRANSFERIR",null,{"$f":"SUM(H17:H27)","v":5000}]
[]
["Destino de recursos:"]
["REF.","PROCESO","PARTIDA","MES","RECURSO","NOMBRE DE LA PARTIDA PRESUPUESTAL",null,"IMPORTE"]
[1,"PP-VIN-EDU-CONT-2016",2211,"FEB.","PRODUCTIVO","ALIMENTOS PARA EL PERSONAL INSTITUCIONAL",null,5000]
[]
[]
[]
[]
[]
[]
[]
[null,null,null,null,null,"SUMA TOTAL A TRANSFERIR",null,{"$f":"SUM(H32:H39)","v":5000}]
[]
["JUSTIFICACIÓN: COMPLEMENTO A LA SOLICITUD DV/DEC/046/2016 Y DV/DEC/047/2016. \n(COFFEBREAK MIXOLOGÍA)"]
[]
[]
["REQUISITOS: La información solicitada en este formato deberá presentarse en forma completa atendiendo a lo requerido en cada uno de los recuadros señalados. Se deben incluir los anexos."]

{"sheet":"012","index":12,"n_rows":49,"n_cols":8,"rows_kept":49,"cut":false,"hidden":true,"merged":[[8,0,8,2],[8,5,8,7],[10,0,10,2],[1,0,4,1],[1,2,4,5],[1,6,1,7],[2,6,2,7],[6,0,6,1],[6,6,6,7],[12,0,12,7],[13,1,13,7],[26,5,26,6],[15,5,15,6],[16,5,16,6],[17,5,17,6],[18,5,18,6],[19,5,19,6],[20,5,20,6],[21,5,21,6],[14,0,14,7],[22,5,22,6],[23,5,23,6],[24,5,24,6],[25,5,25,6],[38,5,38,6],[27,0,27,2],[27,5,27,6],[29,0,29,7],[30,5,30,6],[31,5,31,6],[37,5,37,6],[32,5,32,6],[33,5,33,6],[34,5,34,6],[35,5,35,6],[36,5,36,6],[44,1,44,7],[45,0,45,7],[46,0,47,7],[48,0,49,7],[39,5,39,6],[40,5,40,6],[41,5,41,6],[42,5,42,6],[43,0,43,2],[43,5,43,6]]}
[]
[null,null,"POA 2016 TRANSFERENCIA DE RECURSOS",null,null,null,"Procedimiento"]
[null,null,null,null,null,null,"Código : CPR-P01-F04"]
[null,null,null,null,null,null,"Revisión : ","Página 1de 1"]
[]
[]
["Fecha:   ",null,"2016-02-23",null,null,"No. de Transferencia:","UTC/SV/DEC/012/2016"]
[]
["Nombre de la Unidad Responsable:",null,null,null,null,"SECRETARÍA DE VINCULACIÓN"]
[]
["Monto Total Solicitado: ",null,null,null,null,20075]
[]
["DESCRIPCIÓN DE LA APLICACIÓN SOLICITADA."]
[]
["Origen de los recursos:"]
["REF.","PROCESO","PARTIDA","MES","FINANCIAMIENTO","NOMBRE DE LA PARTIDA PRESUPUESTAL",null,"IMPORTE"]
[1,"1902E0425219",3761,"ENE","FEDERAL","VIÁTICOS EN EL EXTRANJERO",null,2435]
[2,"1902E0425219",3761,"ENE","FEDERAL","VIÁTICOS EN EL EXTRANJERO",null,17640]
[]
[]
[]
[]
[]
[]
[]
[]
[]
[null,null,null,null,null,"SUMA TOTAL A TRANSFERIR",null,{"$f":"SUM(H17:H27)","v":20075}]
[]
["Destino de recursos:"]
["REF.","PROCESO","PARTIDA","MES","RECURSO","NOMBRE DE LA PARTIDA PRESUPUESTAL",null,"IMPORTE"]
[1,"1902E0425219",3781,"FEB.","FEDERAL","SERV. INTEGRALES DE TRASLADO Y VIÁTICOS ",null,2435]
[2,"1902E0425219",3341,"FEB.","FEDERAL","SERVICIOS DE CAPACITACIÓN",null,17640]
[]
[]
[]
[]
[]
[]
[]
[]
[]
[]
[null,null,null,null,null,"SUMA TOTAL A TRANSFERIR",null,{"$f":"SUM(H32:H43)","v":20075}]
[]
["JUSTIFICACIÓN: PARA DAR SUFICIENCIA A LA SOLICITUD DV/DEC/049/050/053//2016.(PAGO HOSPEDAJE E INSCRIPCIÓN CONAHEC Y CURSO PLANEACIÓN ESTRATEGICAS,EV.DE PROBLEMAS, DESARROLLO DE HABILIDADES Y OPTIMIZACIÓN DE RESULTADOS)"]
[]
[]
["REQUISITOS: La información solicitada en este formato deberá presentarse en forma completa atendiendo a lo requerido en cada uno de los recuadros señalados. Se deben incluir los anexos."]

{"sheet":"013 GLA","index":13,"n_rows":49,"n_cols":8,"rows_kept":49,"cut":false,"hidden":true,"merged":[[44,1,44,7],[45,0,45,7],[46,0,47,7],[48,0,49,7],[39,5,39,6],[40,5,40,6],[41,5,41,6],[42,5,42,6],[43,0,43,2],[43,5,43,6],[38,5,38,6],[27,0,27,2],[27,5,27,6],[29,0,29,7],[30,5,30,6],[31,5,31,6],[32,5,32,6],[33,5,33,6],[34,5,34,6],[35,5,35,6],[36,5,36,6],[37,5,37,6],[26,5,26,6],[15,5,15,6],[16,5,16,6],[17,5,17,6],[18,5,18,6],[19,5,19,6],[20,5,20,6],[21,5,21,6],[22,5,22,6],[23,5,23,6],[24,5,24,6],[25,5,25,6],[1,0,4,1],[1,2,4,5],[1,6,1,7],[2,6,2,7],[6,0,6,1],[6,6,6,7],[14,0,14,7],[8,0,8,2],[8,5,8,7],[10,0,10,2],[12,0,12,7],[13,1,13,7]]}
[]
[null,null,"POA 2016 TRANSFERENCIA DE RECURSOS",null,null,null,"Procedimiento"]
[null,null,null,null,null,null,"Código : CPR-P01-F04"]
[null,null,null,null,null,null,"Revisión : ","Página 1de 1"]
[]
[]
["Fecha:   ",null,"2016-02-24",null,null,"No. de Transferencia:","UTC/SV/DEC/013/2016"]
[]
["Nombre de la Unidad Responsable:",null,null,null,null,"SECRETARÍA DE VINCULACIÓN"]
[]
["Monto Total Solicitado: ",null,null,null,null,1300]
[]
["DESCRIPCIÓN DE LA APLICACIÓN SOLICITADA."]
[]
["Origen de los recursos:"]
["REF.","PROCESO","PARTIDA","MES","FINANCIAMIENTO","NOMBRE DE LA PARTIDA PRESUPUESTAL",null,"IMPORTE"]
[1,"PP-VIN-EDU-CONT-2016",2214,"ENE","PRODUCTIVO","ALIMENTACIÓN DE PNAS POR EL DESARROLLO DE OTROS PROG INSTITUCIONALES",null,1300]
[]
[]
[]
[]
[]
[]
[]
[]
[]
[]
[null,null,null,null,null,"SUMA TOTAL A TRANSFERIR",null,{"$f":"SUM(H17:H27)","v":1300}]
[]
["Destino de recursos:"]
["REF.","PROCESO","PARTIDA","MES","RECURSO","NOMBRE DE LA PARTIDA PRESUPUESTAL",null,"IMPORTE"]
[1,"PP-VIN-EDU-CONT-2016",2481,"FEB.","PRODUCTIVO","MATERIALES COMPLEMENTARIOS",null,1300]
[]
[]
[]
[]
[]
[]
[]
[]
[]
[]
[]
[null,null,null,null,null,"SUMA TOTAL A TRANSFERIR",null,{"$f":"SUM(H32:H43)","v":1300}]
[]
["JUSTIFICACIÓN: PARA DAR SUFICIENCIA A LA SOLICITUD DV/DEC/054/2016.\n(PAGO DE LETRERO DE SEÑALIZACIÓN EDUCACIÓN CONTINUA)"]
[]
[]
["REQUISITOS: La información solicitada en este formato deberá presentarse en forma completa atendiendo a lo requerido en cada uno de los recuadros señalados. Se deben incluir los anexos."]

{"sheet":"014","index":14,"n_rows":49,"n_cols":8,"rows_kept":49,"cut":false,"hidden":true,"merged":[[8,0,8,2],[8,5,8,7],[10,0,10,2],[1,0,4,1],[1,2,4,5],[1,6,1,7],[2,6,2,7],[6,0,6,1],[6,6,6,7],[12,0,12,7],[13,1,13,7],[26,5,26,6],[15,5,15,6],[16,5,16,6],[17,5,17,6],[18,5,18,6],[19,5,19,6],[20,5,20,6],[21,5,21,6],[14,0,14,7],[22,5,22,6],[23,5,23,6],[24,5,24,6],[25,5,25,6],[38,5,38,6],[27,0,27,2],[27,5,27,6],[29,0,29,7],[30,5,30,6],[31,5,31,6],[37,5,37,6],[32,5,32,6],[33,5,33,6],[34,5,34,6],[35,5,35,6],[36,5,36,6],[44,1,44,7],[45,0,45,7],[46,0,47,7],[48,0,49,7],[39,5,39,6],[40,5,40,6],[41,5,41,6],[42,5,42,6],[43,0,43,2],[43,5,43,6]]}
[]
[null,null,"POA 2016 TRANSFERENCIA DE RECURSOS",null,null,null,"Procedimiento"]
[null,null,null,null,null,null,"Código : CPR-P01-F04"]
[null,null,null,null,null,null,"Revisión : ","Página 1de 1"]
[]
[]
["Fecha:   ",null,"2016-03-14",null,null,"No. de Transferencia:","UTC/SV/DEC/014/2016"]
[]
["Nombre de la Unidad Responsable:",null,null,null,null,"SECRETARÍA DE VINCULACIÓN"]
[]
["Monto Total Solicitado: ",null,null,null,null,6153]
[]
["DESCRIPCIÓN DE LA APLICACIÓN SOLICITADA."]
[]
["Origen de los recursos:"]
["REF.","PROCESO","PARTIDA","MES","FINANCIAMIENTO","NOMBRE DE LA PARTIDA PRESUPUESTAL",null,"IMPORTE"]
[1,"IP-VIN-MOV-INT-16",4421,"ENE","PROPIOS","BECAS",null,5453]
[2,"IP-VIN-MOV-INT-16",4421,"ENE","PROPIOS","BECAS",null,700]
[]
[]
[]
[]
[]
[]
[]
[]
[]
[null,null,null,null,null,"SUMA TOTAL A TRANSFERIR",null,{"$f":"SUM(H17:H27)","v":6153}]
[]
["Destino de recursos:"]
["REF.","PROCESO","PARTIDA","MES","RECURSO","NOMBRE DE LA PARTIDA PRESUPUESTAL",null,"IMPORTE"]
[1,"IP-VIN-MOV-INT-16",3781,"MAR","PROPIOS","SERVICIOS INTEGRALES DE TRASLADO Y VIÁTICOS",null,5453]
[2,"IP-VIN-MOV-INT-16",2214,"MAR","PROPIOS","ALIMENTACION DE PERSONAS POR EL DESARROLLO DE OTROS PROGRAMAS INSTITUCIONAL.",null,700]
[]
[]
[]
[]
[]
[]
[]
[]
[]
[]
[null,null,null,null,null,"SUMA TOTAL A TRANSFERIR",null,{"$f":"SUM(H32:H43)","v":6153}]
[]
["JUSTIFICACIÓN: PARA DAR SUFICIENCIA A LA SOLICITUD DV/DEC/071 Y 072/2016.HOSPEDAJE Y ALIMENTOS DE LA CHEF ODILE ROBLIN INTERCAMBIO DOCENTE INTERNACIONAL, FRANCIA.\n"]
[]
[]
["REQUISITOS: La información solicitada en este formato deberá presentarse en forma completa atendiendo a lo requerido en cada uno de los recuadros señalados. Se deben incluir los anexos."]

{"sheet":"015 GLA","index":15,"n_rows":49,"n_cols":8,"rows_kept":49,"cut":false,"hidden":true,"merged":[[8,0,8,2],[8,5,8,7],[10,0,10,2],[1,0,4,1],[1,2,4,5],[1,6,1,7],[2,6,2,7],[6,0,6,1],[6,6,6,7],[12,0,12,7],[13,1,13,7],[26,5,26,6],[15,5,15,6],[16,5,16,6],[17,5,17,6],[18,5,18,6],[19,5,19,6],[20,5,20,6],[21,5,21,6],[14,0,14,7],[22,5,22,6],[23,5,23,6],[24,5,24,6],[25,5,25,6],[38,5,38,6],[27,0,27,2],[27,5,27,6],[29,0,29,7],[30,5,30,6],[31,5,31,6],[37,5,37,6],[32,5,32,6],[33,5,33,6],[34,5,34,6],[35,5,35,6],[36,5,36,6],[44,1,44,7],[45,0,45,7],[46,0,47,7],[48,0,49,7],[39,5,39,6],[40,5,40,6],[41,5,41,6],[42,5,42,6],[43,0,43,2],[43,5,43,6]]}
[]
[null,null,"POA 2016 TRANSFERENCIA DE RECURSOS",null,null,null,"Procedimiento"]
[null,null,null,null,null,null,"Código : CPR-P01-F04"]
[null,null,null,null,null,null,"Revisión : ","Página 1de 1"]
[]
[]
["Fecha:   ",null,"2016-03-16",null,null,"No. de Transferencia:","UTC/SV/DEC/015/2016"]
[]
["Nombre de la Unidad Responsable:",null,null,null,null,"SECRETARÍA DE VINCULACIÓN"]
[]
["Monto Total Solicitado: ",null,null,null,null,250]
[]
["DESCRIPCIÓN DE LA APLICACIÓN SOLICITADA."]
[]
["Origen de los recursos:"]
["REF.","PROCESO","PARTIDA","MES","FINANCIAMIENTO","NOMBRE DE LA PARTIDA PRESUPUESTAL",null,"IMPORTE"]
[1,"PP-VIN-EDU-CONT-2016",2214,"MAR","PRODUCTIVO","ALIMENTACIÓN DE PNAS POR EL DESARROLLO DE OTROS PROG INSTITUCIONALES",null,250]
[]
[]
[]
[]
[]
[]
[]
[]
[]
[]
[null,null,null,null,null,"SUMA TOTAL A TRANSFERIR",null,{"$f":"SUM(H17:H27)","v":250}]
[]
["Destino de recursos:"]
["REF.","PROCESO","PARTIDA","MES","RECURSO","NOMBRE DE LA PARTIDA PRESUPUESTAL",null,"IMPORTE"]
[1,"PP-VIN-EDU-CONT-2016",2231,"MAR","PRODUCTIVO","UTENSILIOS MAT Y EQP MENORES P/SERVICIO DE ALIMENTACIONES",null,250]
[]
[]
[]
[]
[]
[]
[]
[]
[]
[]
[]
[null,null,null,null,null,"SUMA TOTAL A TRANSFERIR",null,{"$f":"SUM(H32:H43)","v":250}]
[]
["JUSTIFICACIÓN: PARA DAR SUFICIENCIA A LA SOLICITUD DV/DEC/074/2016.\n(REPOSICIÓN MATERIAL TALLER DE GASTRONOMÍA)"]
[]
[]
["REQUISITOS: La información solicitada en este formato deberá presentarse en forma completa atendiendo a lo requerido en cada uno de los recuadros señalados. Se deben incluir los anexos."]

{"sheet":"016 GLA","index":16,"n_rows":45,"n_cols":8,"rows_kept":45,"cut":false,"hidden":true,"merged":[[44,0,45,7],[36,5,36,6],[37,5,37,6],[26,5,26,6],[27,0,27,2],[27,5,27,6],[29,0,29,7],[30,5,30,6],[31,5,31,6],[32,5,32,6],[38,5,38,6],[39,0,39,2],[39,5,39,6],[40,1,40,7],[41,0,43,7],[19,5,19,6],[20,5,20,6],[33,5,33,6],[34,5,34,6],[35,5,35,6],[21,5,21,6],[22,5,22,6],[23,5,23,6],[24,5,24,6],[25,5,25,6],[14,0,14,7],[15,5,15,6],[16,5,16,6],[17,5,17,6],[18,5,18,6],[1,0,4,1],[1,2,4,5],[1,6,1,7],[2,6,2,7],[6,0,6,1],[6,6,6,7],[8,0,8,2],[8,5,8,7],[10,0,10,2],[12,0,12,7],[13,1,13,7]]}
[]
[null,null,"POA 2016 TRANSFERENCIA DE RECURSOS",null,null,null,"Procedimiento"]
[null,null,null,null,null,null,"Código : CPR-P01-F04"]
[null,null,null,null,null,null,"Revisión : ","Página 1de 1"]
[]
[]
["Fecha:   ",null,"2016-03-16",null,null,"No. de Transferencia:","UTC/SV/DEC/016/2016"]
[]
["Nombre de la Unidad Responsable:",null,null,null,null,"SECRETARÍA DE VINCULACIÓN"]
[]
["Monto Total Solicitado: ",null,null,null,null,3000]
[]
["DESCRIPCIÓN DE LA APLICACIÓN SOLICITADA."]
[]
["Origen de los recursos:"]
["REF.","PROCESO","PARTIDA","MES","FINANCIAMIENTO","NOMBRE DE LA PARTIDA PRESUPUESTAL",null,"IMPORTE"]
[1,"PP-VIN-EDU-CONT-2016",2214,"MAR","PRODUCTIVO","ALIMENTACIÓN DE PNAS POR EL DESARROLLO DE OTROS PROG INSTITUCIONALES",null,3000]
[]
[]
[]
[]
[]
[]
[]
[]
[]
[]
[null,null,null,null,null,"SUMA TOTAL A TRANSFERIR",null,{"$f":"SUM(H17:H27)","v":3000}]
[]
["Destino de recursos:"]
["REF.","PROCESO","PARTIDA","MES","RECURSO","NOMBRE DE LA PARTIDA PRESUPUESTAL",null,"IMPORTE"]
[1,"PP-VIN-EDU-CONT-2016",2211,"MAR","PRODUCTIVO","ALIMENTOS PARA EL PERSONAL INSTITUCIONAL",null,3000]
[]
[]
[]
[]
[]
[]
[]
[null,null,null,null,null,"SUMA TOTAL A TRANSFERIR",null,{"$f":"SUM(H32:H39)","v":3000}]
[]
["JUSTIFICACIÓN: COMPLEMENTO A LA SOLICITUD DV/DEC/076/2016\n(COFFEBREAK MMARKETING DIGITAL PARA PYMES)"]
[]
[]
["REQUISITOS: La información solicitada en este formato deberá presentarse en forma completa atendiendo a lo requerido en cada uno de los recuadros señalados. Se deben incluir los anexos."]

{"sheet":"017","index":17,"n_rows":49,"n_cols":8,"rows_kept":49,"cut":false,"hidden":true,"merged":[[8,0,8,2],[8,5,8,7],[10,0,10,2],[1,0,4,1],[1,2,4,5],[1,6,1,7],[2,6,2,7],[6,0,6,1],[6,6,6,7],[12,0,12,7],[13,1,13,7],[26,5,26,6],[15,5,15,6],[16,5,16,6],[17,5,17,6],[18,5,18,6],[19,5,19,6],[20,5,20,6],[21,5,21,6],[14,0,14,7],[22,5,22,6],[23,5,23,6],[24,5,24,6],[25,5,25,6],[38,5,38,6],[27,0,27,2],[27,5,27,6],[29,0,29,7],[30,5,30,6],[31,5,31,6],[37,5,37,6],[32,5,32,6],[33,5,33,6],[34,5,34,6],[35,5,35,6],[36,5,36,6],[44,1,44,7],[45,0,45,7],[46,0,47,7],[48,0,49,7],[39,5,39,6],[40,5,40,6],[41,5,41,6],[42,5,42,6],[43,0,43,2],[43,5,43,6]]}
[]
[null,null,"POA 2016 TRANSFERENCIA DE RECURSOS",null,null,null,"Procedimiento"]
[null,null,null,null,null,null,"Código : CPR-P01-F04"]
[null,null,null,null,null,null,"Revisión : ","Página 1de 1"]
[]
[]
["Fecha:   ",null,"2016-04-06",null,null,"No. de Transferencia:","UTC/SV/DEC/017/2016"]
[]
["Nombre de la Unidad Responsable:",null,null,null,null,"SECRETARÍA DE VINCULACIÓN"]
[]
["Monto Total Solicitado: ",null,null,null,null,6000]
[]
["DESCRIPCIÓN DE LA APLICACIÓN SOLICITADA."]
[]
["Origen de los recursos:"]
["REF.","PROCESO","PARTIDA","MES","FINANCIAMIENTO","NOMBRE DE LA PARTIDA PRESUPUESTAL",null,"IMPORTE"]
[1,"IP-VIN-MOV-INT-16",4421,"ENE","PROPIOS","BECAS",null,6000]
[]
[]
[]
[]
[]
[]
[]
[]
[]
[]
[null,null,null,null,null,"SUMA TOTAL A TRANSFERIR",null,{"$f":"SUM(H17:H27)","v":6000}]
[]
["Destino de recursos:"]
["REF.","PROCESO","PARTIDA","MES","RECURSO","NOMBRE DE LA PARTIDA PRESUPUESTAL",null,"IMPORTE"]
[1,"IP-VIN-MOV-INT-16",2211,"ABRIL","PROPIOS","ALIMENTOS PARA EL PERSONAL INSTITUCIONAL",null,6000]
[]
[]
[]
[]
[]
[]
[]
[]
[]
[]
[]
[null,null,null,null,null,"SUMA TOTAL A TRANSFERIR",null,{"$f":"SUM(H32:H43)","v":6000}]
[]
["JUSTIFICACIÓN: SUFICIENCIA A LA SOLICITUD DV/DEC/080/16 COMPRA DE INSUMOS PARA LA SEMANA GASTRONÓMICA FRANCESA DEL 11 AL 15 DE ABRIL/2016\n"]
[]
[]
["REQUISITOS: La información solicitada en este formato deberá presentarse en forma completa atendiendo a lo requerido en cada uno de los recuadros señalados. Se deben incluir los anexos."]

{"sheet":"018","index":18,"n_rows":49,"n_cols":8,"rows_kept":49,"cut":false,"hidden":true,"merged":[[44,1,44,7],[45,0,45,7],[46,0,47,7],[48,0,49,7],[39,5,39,6],[40,5,40,6],[41,5,41,6],[42,5,42,6],[43,0,43,2],[43,5,43,6],[38,5,38,6],[27,0,27,2],[27,5,27,6],[29,0,29,7],[30,5,30,6],[31,5,31,6],[32,5,32,6],[33,5,33,6],[34,5,34,6],[35,5,35,6],[36,5,36,6],[37,5,37,6],[26,5,26,6],[15,5,15,6],[16,5,16,6],[17,5,17,6],[18,5,18,6],[19,5,19,6],[20,5,20,6],[21,5,21,6],[22,5,22,6],[23,5,23,6],[24,5,24,6],[25,5,25,6],[1,0,4,1],[1,2,4,5],[1,6,1,7],[2,6,2,7],[6,0,6,1],[6,6,6,7],[14,0,14,7],[8,0,8,2],[8,5,8,7],[10,0,10,2],[12,0,12,7],[13,1,13,7]]}
[]
[null,null,"POA 2016 TRANSFERENCIA DE RECURSOS",null,null,null,"Procedimiento"]
[null,null,null,null,null,null,"Código : CPR-P01-F04"]
[null,null,null,null,null,null,"Revisión : ","Página 1de 1"]
[]
[]
["Fecha:   ",null,"2016-04-06",null,null,"No. de Transferencia:","UTC/SV/DEC/018/2016"]
[]
["Nombre de la Unidad Responsable:",null,null,null,null,"SECRETARÍA DE VINCULACIÓN"]
[]
["Monto Total Solicitado: ",null,null,null,null,240.08]
[]
["DESCRIPCIÓN DE LA APLICACIÓN SOLICITADA."]
[]
["Origen de los recursos:"]
["REF.","PROCESO","PARTIDA","MES","FINANCIAMIENTO","NOMBRE DE LA PARTIDA PRESUPUESTAL",null,"IMPORTE"]
[1,"1902E0425219",3761,"ENE","FEDERAL","VIÁTICOS EN EL EXTRANJERO",null,240.08]
[]
[]
[]
[]
[]
[]
[]
[]
[]
[]
[null,null,null,null,null,"SUMA TOTAL A TRANSFERIR",null,{"$f":"SUM(H17:H27)","v":240.08}]
[]
["Destino de recursos:"]
["REF.","PROCESO","PARTIDA","MES","RECURSO","NOMBRE DE LA PARTIDA PRESUPUESTAL",null,"IMPORTE"]
[1,"1902E0425219",3181,"FEB","FECERAL","SERVICIOS POSTALES Y TELEGRÁFICOS",null,240.08]
[]
[]
[]
[]
[]
[]
[]
[]
[]
[]
[]
[null,null,null,null,null,"SUMA TOTAL A TRANSFERIR",null,{"$f":"SUM(H32:H43)","v":240.08}]
[]
["JUSTIFICACIÓN: PARA DAR SUFICIENCIA A LA SOLICITUD DV/DEC/041 ENVÍO INTERNACIONAL A SAN ANTONIO TEXAS\n"]
[]
[]
["REQUISITOS: La información solicitada en este formato deberá presentarse en forma completa atendiendo a lo requerido en cada uno de los recuadros señalados. Se deben incluir los anexos."]

{"sheet":"019","index":19,"n_rows":49,"n_cols":8,"rows_kept":49,"cut":false,"hidden":true,"merged":[[8,0,8,2],[8,5,8,7],[10,0,10,2],[1,0,4,1],[1,2,4,5],[1,6,1,7],[2,6,2,7],[6,0,6,1],[6,6,6,7],[12,0,12,7],[13,1,13,7],[26,5,26,6],[15,5,15,6],[16,5,16,6],[17,5,17,6],[18,5,18,6],[19,5,19,6],[20,5,20,6],[21,5,21,6],[14,0,14,7],[22,5,22,6],[23,5,23,6],[24,5,24,6],[25,5,25,6],[38,5,38,6],[27,0,27,2],[27,5,27,6],[29,0,29,7],[30,5,30,6],[31,5,31,6],[37,5,37,6],[32,5,32,6],[33,5,33,6],[34,5,34,6],[35,5,35,6],[36,5,36,6],[44,1,44,7],[45,0,45,7],[46,0,47,7],[48,0,49,7],[39,5,39,6],[40,5,40,6],[41,5,41,6],[42,5,42,6],[43,0,43,2],[43,5,43,6]]}
[]
[null,null,"POA 2016 TRANSFERENCIA DE RECURSOS",null,null,null,"Procedimiento"]
[null,null,null,null,null,null,"Código : CPR-P01-F04"]
[null,null,null,null,null,null,"Revisión : ","Página 1de 1"]
[]
[]
["Fecha:   ",null,"2016-04-06",null,null,"No. de Transferencia:","UTC/SV/DEC/019/2016"]
[]
["Nombre de la Unidad Responsable:",null,null,null,null,"SECRETARÍA DE VINCULACIÓN"]
[]
["Monto Total Solicitado: ",null,null,null,null,1500]
[]
["DESCRIPCIÓN DE LA APLICACIÓN SOLICITADA."]
[]
["Origen de los recursos:"]
["REF.","PROCESO","PARTIDA","MES","FINANCIAMIENTO","NOMBRE DE LA PARTIDA PRESUPUESTAL",null,"IMPORTE"]
[1,"1902E0425219",2214,"ENE","FEDERAL","ALIM.DE PERSONAS P/EL DESARROLLO DE OTROS PROGRAMAS",null,1500]
[]
[]
[]
[]
[]
[]
[]
[]
[]
[]
[null,null,null,null,null,"SUMA TOTAL A TRANSFERIR",null,{"$f":"SUM(H17:H27)","v":1500}]
[]
["Destino de recursos:"]
["REF.","PROCESO","PARTIDA","MES","RECURSO","NOMBRE DE LA PARTIDA PRESUPUESTAL",null,"IMPORTE"]
[1,"1902E0425219",2211,4,"FEDERAL","ALIMENTOS PARA PERSONAL INSTITUCIONAL",null,1500]
[]
[]
[]
[]
[]
[]
[]
[]
[]
[]
[]
[null,null,null,null,null,"SUMA TOTAL A TRANSFERIR",null,{"$f":"SUM(H32:H43)","v":1500}]
[]
["JUSTIFICACIÓN: PARA DAR SUFICIENCIA A LA SOLICITUD DV/DEC/082/2016.\n(PAGO DE ALIMENTOS LIC. REGINA Y LIC.MARIANA GLEZ.)"]
[]
[]
["REQUISITOS: La información solicitada en este formato deberá presentarse en forma completa atendiendo a lo requerido en cada uno de los recuadros señalados. Se deben incluir los anexos."]

{"sheet":"020 GLA","index":20,"n_rows":45,"n_cols":8,"rows_kept":45,"cut":false,"hidden":true,"merged":[[44,0,45,7],[36,5,36,6],[37,5,37,6],[26,5,26,6],[27,0,27,2],[27,5,27,6],[29,0,29,7],[30,5,30,6],[31,5,31,6],[32,5,32,6],[38,5,38,6],[39,0,39,2],[39,5,39,6],[40,1,40,7],[41,0,43,7],[19,5,19,6],[20,5,20,6],[33,5,33,6],[34,5,34,6],[35,5,35,6],[21,5,21,6],[22,5,22,6],[23,5,23,6],[24,5,24,6],[25,5,25,6],[14,0,14,7],[15,5,15,6],[16,5,16,6],[17,5,17,6],[18,5,18,6],[1,0,4,1],[1,2,4,5],[1,6,1,7],[2,6,2,7],[6,0,6,1],[6,6,6,7],[8,0,8,2],[8,5,8,7],[10,0,10,2],[12,0,12,7],[13,1,13,7]]}
[]
[null,null,"POA 2016 TRANSFERENCIA DE RECURSOS",null,null,null,"Procedimiento"]
[null,null,null,null,null,null,"Código : CPR-P01-F04"]
[null,null,null,null,null,null,"Revisión : ","Página 1de 1"]
[]
[]
["Fecha:   ",null,"2016-04-06",null,null,"No. de Transferencia:","UTC/SV/DEC/020/2016"]
[]
["Nombre de la Unidad Responsable:",null,null,null,null,"SECRETARÍA DE VINCULACIÓN"]
[]
["Monto Total Solicitado: ",null,null,null,null,3700]
[]
["DESCRIPCIÓN DE LA APLICACIÓN SOLICITADA."]
[]
["Origen de los recursos:"]
["REF.","PROCESO","PARTIDA","MES","FINANCIAMIENTO","NOMBRE DE LA PARTIDA PRESUPUESTAL",null,"IMPORTE"]
[1,"PP-VIN-EDU-CONT-2016",2214,"ABR","PRODUCTIVO","ALIMENTACIÓN DE PNAS POR EL DESARROLLO DE OTROS PROG INSTITUCIONALES",null,3000]
[2,"PP-VIN-EDU-CONT-2016",2214,"MAY","PRODUCTIVO","ALIMENTACIÓN DE PNAS POR EL DESARROLLO DE OTROS PROG INSTITUCIONALES",null,700]
[]
[]
[]
[]
[]
[]
[]
[]
[]
[null,null,null,null,null,"SUMA TOTAL A TRANSFERIR",null,{"$f":"SUM(H17:H27)","v":3700}]
[]
["Destino de recursos:"]
["REF.","PROCESO","PARTIDA","MES","RECURSO","NOMBRE DE LA PARTIDA PRESUPUESTAL",null,"IMPORTE"]
[1,"PP-VIN-EDU-CONT-2016",2211,"ABR","PRODUCTIVO","ALIMENTOS PARA EL PERSONAL INSTITUCIONAL",null,3000]
[2,"PP-VIN-EDU-CONT-2016",2211,"ABR","PRODUCTIVO","ALIMENTOS PARA EL PERSONAL INSTITUCIONAL",null,700]
[]
[]
[]
[]
[]
[]
[null,null,null,null,null,"SUMA TOTAL A TRANSFERIR",null,{"$f":"SUM(H32:H39)","v":3700}]
[]
["JUSTIFICACIÓN: PARA DAR SUFICIENCIA A LA SOLICITUD DV/DEC/083/2016\n(COFFEBREAK SIMULADOR DE IMPUESTOS PARA PERSONAS FÍSICAS)"]
[]
[]
["REQUISITOS: La información solicitada en este formato deberá presentarse en forma completa atendiendo a lo requerido en cada uno de los recuadros señalados. Se deben incluir los anexos."]

{"sheet":"021","index":21,"n_rows":49,"n_cols":8,"rows_kept":49,"cut":false,"hidden":true,"merged":[[44,1,44,7],[45,0,45,7],[46,0,47,7],[48,0,49,7],[39,5,39,6],[40,5,40,6],[41,5,41,6],[42,5,42,6],[43,0,43,2],[43,5,43,6],[38,5,38,6],[27,0,27,2],[27,5,27,6],[29,0,29,7],[30,5,30,6],[31,5,31,6],[32,5,32,6],[33,5,33,6],[34,5,34,6],[35,5,35,6],[36,5,36,6],[37,5,37,6],[26,5,26,6],[15,5,15,6],[16,5,16,6],[17,5,17,6],[18,5,18,6],[19,5,19,6],[20,5,20,6],[21,5,21,6],[22,5,22,6],[23,5,23,6],[24,5,24,6],[25,5,25,6],[1,0,4,1],[1,2,4,5],[1,6,1,7],[2,6,2,7],[6,0,6,1],[6,6,6,7],[14,0,14,7],[8,0,8,2],[8,5,8,7],[10,0,10,2],[12,0,12,7],[13,1,13,7]]}
[]
[null,null,"POA 2016 TRANSFERENCIA DE RECURSOS",null,null,null,"Procedimiento"]
[null,null,null,null,null,null,"Código : CPR-P01-F04"]
[null,null,null,null,null,null,"Revisión : ","Página 1de 1"]
[]
[]
["Fecha:   ",null,"2016-04-08",null,null,"No. de Transferencia:","UTC/SV/DEC/021/2016"]
[]
["Nombre de la Unidad Responsable:",null,null,null,null,"SECRETARÍA DE VINCULACIÓN"]
[]
["Monto Total Solicitado: ",null,null,null,null,1440.26]
[]
["DESCRIPCIÓN DE LA APLICACIÓN SOLICITADA."]
[]
["Origen de los recursos:"]
["REF.","PROCESO","PARTIDA","MES","FINANCIAMIENTO","NOMBRE DE LA PARTIDA PRESUPUESTAL",null,"IMPORTE"]
[1,"1902E0425219",3761,"ENE","FEDERAL","VIÁTICOS EN EL EXTRANJERO",null,1440.26]
[]
[]
[]
[]
[]
[]
[]
[]
[]
[]
[null,null,null,null,null,"SUMA TOTAL A TRANSFERIR",null,{"$f":"SUM(H17:H27)","v":1440.26}]
[]
["Destino de recursos:"]
["REF.","PROCESO","PARTIDA","MES","RECURSO","NOMBRE DE LA PARTIDA PRESUPUESTAL",null,"IMPORTE"]
[1,"1902E0425219",3181,"ABRIL","FEDERAL","SERVICIOS POSTALES Y TELEGRÁFICOS",null,1440.26]
[]
[]
[]
[]
[]
[]
[]
[]
[]
[]
[]
[null,null,null,null,null,"SUMA TOTAL A TRANSFERIR",null,{"$f":"SUM(H32:H43)","v":1440.26}]
[]
["JUSTIFICACIÓN: PARA DAR SUFICIENCIA A LA SOLICITUD DV/DEC/085/086/2016.(ENVÍOS INTERNACIONALES).\n"]
[]
[]
["REQUISITOS: La información solicitada en este formato deberá presentarse en forma completa atendiendo a lo requerido en cada uno de los recuadros señalados. Se deben incluir los anexos."]

{"sheet":"022","index":22,"n_rows":49,"n_cols":8,"rows_kept":49,"cut":false,"hidden":true,"merged":[[8,0,8,2],[8,5,8,7],[10,0,10,2],[1,0,4,1],[1,2,4,5],[1,6,1,7],[2,6,2,7],[6,0,6,1],[6,6,6,7],[12,0,12,7],[13,1,13,7],[26,5,26,6],[15,5,15,6],[16,5,16,6],[17,5,17,6],[18,5,18,6],[19,5,19,6],[20,5,20,6],[21,5,21,6],[14,0,14,7],[22,5,22,6],[23,5,23,6],[24,5,24,6],[25,5,25,6],[38,5,38,6],[27,0,27,2],[27,5,27,6],[29,0,29,7],[30,5,30,6],[31,5,31,6],[37,5,37,6],[32,5,32,6],[33,5,33,6],[34,5,34,6],[35,5,35,6],[36,5,36,6],[44,1,44,7],[45,0,45,7],[46,0,47,7],[48,0,49,7],[39,5,39,6],[40,5,40,6],[41,5,41,6],[42,5,42,6],[43,0,43,2],[43,5,43,6]]}
[]
[null,null,"POA 2016 TRANSFERENCIA DE RECURSOS",null,null,null,"Procedimiento"]
[null,null,null,null,null,null,"Código : CPR-P01-F04"]
[null,null,null,null,null,null,"Revisión : ","Página 1de 1"]
[]
[]
["Fecha:   ",null,"2016-04-14",null,null,"No. de Transferencia:","UTC/SV/DEC/022/2016"]
[]
["Nombre de la Unidad Responsable:",null,null,null,null,"SECRETARÍA DE VINCULACIÓN"]
[]
["Monto Total Solicitado: ",null,null,null,null,988]
[]
["DESCRIPCIÓN DE LA APLICACIÓN SOLICITADA."]
[]
["Origen de los recursos:"]
["REF.","PROCESO","PARTIDA","MES","FINANCIAMIENTO","NOMBRE DE LA PARTIDA PRESUPUESTAL",null,"IMPORTE"]
[1,"1902E0425219",3761,"ENE","FEDERAL","VIÁTICOS EN EL EXTRANJERO",null,988]
[]
[]
[]
[]
[]
[]
[]
[]
[]
[]
[null,null,null,null,null,"SUMA TOTAL A TRANSFERIR",null,{"$f":"SUM(H17:H27)","v":988}]
[]
["Destino de recursos:"]
["REF.","PROCESO","PARTIDA","MES","RECURSO","NOMBRE DE LA PARTIDA PRESUPUESTAL",null,"IMPORTE"]
[1,"1902E0425219",2214,"ABRIL","FEDERAL","ALIMENTACIÓN DE PERSONAS POR EL DESARROLLO DE OTROS PROGRAMAS INSTITUCIONALES",null,988]
[]
[]
[]
[]
[]
[]
[]
[]
[]
[]
[]
[null,null,null,null,null,"SUMA TOTAL A TRANSFERIR",null,{"$f":"SUM(H32:H43)","v":988}]
[]
["JUSTIFICACIÓN: PARA DAR SUFICIENCIA A LA SOLICITUD DV/DEC/098/2016.(COMIDA CON LA CHEF ODILE ROBLIN).\n"]
[]
[]
["REQUISITOS: La información solicitada en este formato deberá presentarse en forma completa atendiendo a lo requerido en cada uno de los recuadros señalados. Se deben incluir los anexos."]

{"sheet":"023","index":23,"n_rows":49,"n_cols":8,"rows_kept":49,"cut":false,"hidden":true,"merged":[[44,1,44,7],[45,0,45,7],[46,0,47,7],[48,0,49,7],[39,5,39,6],[40,5,40,6],[41,5,41,6],[42,5,42,6],[43,0,43,2],[43,5,43,6],[38,5,38,6],[27,0,27,2],[27,5,27,6],[29,0,29,7],[30,5,30,6],[31,5,31,6],[32,5,32,6],[33,5,33,6],[34,5,34,6],[35,5,35,6],[36,5,36,6],[37,5,37,6],[26,5,26,6],[15,5,15,6],[16,5,16,6],[17,5,17,6],[18,5,18,6],[19,5,19,6],[20,5,20,6],[21,5,21,6],[22,5,22,6],[23,5,23,6],[24,5,24,6],[25,5,25,6],[1,0,4,1],[1,2,4,5],[1,6,1,7],[2,6,2,7],[6,0,6,1],[6,6,6,7],[14,0,14,7],[8,0,8,2],[8,5,8,7],[10,0,10,2],[12,0,12,7],[13,1,13,7]]}
[]
[null,null,"POA 2016 TRANSFERENCIA DE RECURSOS",null,null,null,"Procedimiento"]
[null,null,null,null,null,null,"Código : CPR-P01-F04"]
[null,null,null,null,null,null,"Revisión : ","Página 1de 1"]
[]
[]
["Fecha:   ",null,"2016-04-14",null,null,"No. de Transferencia:","UTC/SV/DEC/023/2016"]
[]
["Nombre de la Unidad Responsable:",null,null,null,null,"SECRETARÍA DE VINCULACIÓN"]
[]
["Monto Total Solicitado: ",null,null,null,null,3600]
[]
["DESCRIPCIÓN DE LA APLICACIÓN SOLICITADA."]
[]
["Origen de los recursos:"]
["REF.","PROCESO","PARTIDA","MES","FINANCIAMIENTO","NOMBRE DE LA PARTIDA PRESUPUESTAL",null,"IMPORTE"]
[1,"1902E0425219",3711,"ENE","FEDERAL","PASAJES AEREOS NACIONALES",null,2000]
[2,"1902E0425219",3721,"ENE","FEDERAL","PASAJES TERRESTRES NACIONALES",null,1000]
[3,"1902E0425219",3751,"ENE","FEDERAL","VIATICOS EN EL PAIS",null,600]
[]
[]
[]
[]
[]
[]
[]
[]
[null,null,null,null,null,"SUMA TOTAL A TRANSFERIR",null,{"$f":"SUM(H17:H27)","v":3600}]
[]
["Destino de recursos:"]
["REF.","PROCESO","PARTIDA","MES","RECURSO","NOMBRE DE LA PARTIDA PRESUPUESTAL",null,"IMPORTE"]
[1,"1902E0425219",3341,"ABRIL","FEDERAL","SERVICIOS DE CAPACITACIÓN",null,2000]
[2,"1902E0425219",3341,"ABRIL","FEDERAL","SERVICIOS DE CAPACITACIÓN",null,1000]
[3,"1902E0425219",3341,"ABRIL","FEDERAL","SERVICIOS DE CAPACITACIÓN",null,600]
[]
[]
[]
[]
[]
[]
[]
[]
[]
[null,null,null,null,null,"SUMA TOTAL A TRANSFERIR",null,{"$f":"SUM(H32:H43)","v":3600}]
[]
["JUSTIFICACIÓN: PARA DAR SUFICIENCIA A LA SOLICITUD DV/DEC/103/2016.(INSCRIPCIÓN REGINA CURSO DE EDUCACIÓN CONTINUA).\n"]
[]
[]
["REQUISITOS: La información solicitada en este formato deberá presentarse en forma completa atendiendo a lo requerido en cada uno de los recuadros señalados. Se deben incluir los anexos."]

{"sheet":"024","index":24,"n_rows":49,"n_cols":8,"rows_kept":49,"cut":false,"hidden":true,"merged":[[8,0,8,2],[8,5,8,7],[10,0,10,2],[1,0,4,1],[1,2,4,5],[1,6,1,7],[2,6,2,7],[6,0,6,1],[6,6,6,7],[12,0,12,7],[13,1,13,7],[26,5,26,6],[15,5,15,6],[16,5,16,6],[17,5,17,6],[18,5,18,6],[19,5,19,6],[20,5,20,6],[21,5,21,6],[14,0,14,7],[22,5,22,6],[23,5,23,6],[24,5,24,6],[25,5,25,6],[38,5,38,6],[27,0,27,2],[27,5,27,6],[29,0,29,7],[30,5,30,6],[31,5,31,6],[37,5,37,6],[32,5,32,6],[33,5,33,6],[34,5,34,6],[35,5,35,6],[36,5,36,6],[44,1,44,7],[45,0,45,7],[46,0,47,7],[48,0,49,7],[39,5,39,6],[40,5,40,6],[41,5,41,6],[42,5,42,6],[43,0,43,2],[43,5,43,6]]}
[]
[null,null,"POA 2016 TRANSFERENCIA DE RECURSOS",null,null,null,"Procedimiento"]
[null,null,null,null,null,null,"Código : CPR-P01-F04"]
[null,null,null,null,null,null,"Revisión : ","Página 1de 1"]
[]
[]
["Fecha:   ",null,"2016-04-26",null,null,"No. de Transferencia:","UTC/SV/DEC/024/2016"]
[]
["Nombre de la Unidad Responsable:",null,null,null,null,"SECRETARÍA DE VINCULACIÓN"]
[]
["Monto Total Solicitado: ",null,null,null,null,2400]
[]
["DESCRIPCIÓN DE LA APLICACIÓN SOLICITADA."]
[]
["Origen de los recursos:"]
["REF.","PROCESO","PARTIDA","MES","FINANCIAMIENTO","NOMBRE DE LA PARTIDA PRESUPUESTAL",null,"IMPORTE"]
[1,"IP-VIN-MEXPROTEC-2016",3921,"JUN.","PROPIOS","IMPUESTOS Y DERECHOS",null,2400]
[]
[]
[]
[]
[]
[]
[]
[]
[]
[]
[null,null,null,null,null,"SUMA TOTAL A TRANSFERIR",null,{"$f":"SUM(H17:H27)","v":2400}]
[]
["Destino de recursos:"]
["REF.","PROCESO","PARTIDA","MES","RECURSO","NOMBRE DE LA PARTIDA PRESUPUESTAL",null,"IMPORTE"]
[1,"IP-VIN-MEXPROTEC-2016",3781,"ABRIL","PROPIOS","SERVICIOS INTEGRALES DE TRASLADO Y VIÁTICOS",null,2400]
[]
[]
[]
[]
[]
[]
[]
[]
[]
[]
[]
[null,null,null,null,null,"SUMA TOTAL A TRANSFERIR",null,{"$f":"SUM(H32:H43)","v":2400}]
[]
["JUSTIFICACIÓN: PARA DAR SUFICIENCIA A LA SOLICITUD DV/DEC/106 Y 107/2016."]
[]
[]
["REQUISITOS: La información solicitada en este formato deberá presentarse en forma completa atendiendo a lo requerido en cada uno de los recuadros señalados. Se deben incluir los anexos."]

{"sheet":"025 GLA","index":25,"n_rows":49,"n_cols":8,"rows_kept":49,"cut":false,"hidden":true,"merged":[[8,0,8,2],[8,5,8,7],[10,0,10,2],[1,0,4,1],[1,2,4,5],[1,6,1,7],[2,6,2,7],[6,0,6,1],[6,6,6,7],[12,0,12,7],[13,1,13,7],[26,5,26,6],[15,5,15,6],[16,5,16,6],[17,5,17,6],[18,5,18,6],[19,5,19,6],[20,5,20,6],[21,5,21,6],[14,0,14,7],[22,5,22,6],[23,5,23,6],[24,5,24,6],[25,5,25,6],[38,5,38,6],[27,0,27,2],[27,5,27,6],[29,0,29,7],[30,5,30,6],[31,5,31,6],[37,5,37,6],[32,5,32,6],[33,5,33,6],[34,5,34,6],[35,5,35,6],[36,5,36,6],[44,1,44,7],[45,0,45,7],[46,0,47,7],[48,0,49,7],[39,5,39,6],[40,5,40,6],[41,5,41,6],[42,5,42,6],[43,0,43,2],[43,5,43,6]]}
[]
[null,null,"POA 2016 TRANSFERENCIA DE RECURSOS",null,null,null,"Procedimiento"]
[null,null,null,null,null,null,"Código : CPR-P01-F04"]
[null,null,null,null,null,null,"Revisión : ","Página 1de 1"]
[]
[]
["Fecha:   ",null,"2016-04-26",null,null,"No. de Transferencia:","UTC/SV/DEC/025/2016"]
[]
["Nombre de la Unidad Responsable:",null,null,null,null,"SECRETARÍA DE VINCULACIÓN"]
[]
["Monto Total Solicitado: ",null,null,null,null,600]
[]
["DESCRIPCIÓN DE LA APLICACIÓN SOLICITADA."]
[]
["Origen de los recursos:"]
["REF.","PROCESO","PARTIDA","MES","FINANCIAMIENTO","NOMBRE DE LA PARTIDA PRESUPUESTAL",null,"IMPORTE"]
[1,"PP-VIN-EDU-CONT-2016",3751,"ENE","PRODUCTIVO","VIATICOS EN EL PAIS",null,600]
[]
[]
[]
[]
[]
[]
[]
[]
[]
[]
[null,null,null,null,null,"SUMA TOTAL A TRANSFERIR",null,{"$f":"SUM(H17:H27)","v":600}]
[]
["Destino de recursos:"]
["REF.","PROCESO","PARTIDA","MES","RECURSO","NOMBRE DE LA PARTIDA PRESUPUESTAL",null,"IMPORTE"]
[1,"PP-VIN-EDU-CONT-2016",2941,"ABRIL","PRODUCTIVO","REFACCIONES Y ACCESORIOS DE EQP DE COMPUTO Y TICS",null,600]
[]
[]
[]
[]
[]
[]
[]
[]
[]
[]
[]
[null,null,null,null,null,"SUMA TOTAL A TRANSFERIR",null,{"$f":"SUM(H32:H43)","v":600}]
[]
["JUSTIFICACIÓN: PARA DAR SUFICIENCIA A LA SOLICITUD DV/DEC/109/2016\n(COMPRA DE EQUIPO PARA CURSOS BOCINAS Y MULTICONTACTOS)"]
[]
[]
["REQUISITOS: La información solicitada en este formato deberá presentarse en forma completa atendiendo a lo requerido en cada uno de los recuadros señalados. Se deben incluir los anexos."]

{"sheet":"026","index":26,"n_rows":49,"n_cols":8,"rows_kept":49,"cut":false,"hidden":true,"merged":[[44,1,44,7],[45,0,45,7],[46,0,47,7],[48,0,49,7],[39,5,39,6],[40,5,40,6],[41,5,41,6],[42,5,42,6],[43,0,43,2],[43,5,43,6],[38,5,38,6],[27,0,27,2],[27,5,27,6],[29,0,29,7],[30,5,30,6],[31,5,31,6],[32,5,32,6],[33,5,33,6],[34,5,34,6],[35,5,35,6],[36,5,36,6],[37,5,37,6],[26,5,26,6],[15,5,15,6],[16,5,16,6],[17,5,17,6],[18,5,18,6],[19,5,19,6],[20,5,20,6],[21,5,21,6],[22,5,22,6],[23,5,23,6],[24,5,24,6],[25,5,25,6],[1,0,4,1],[1,2,4,5],[1,6,1,7],[2,6,2,7],[6,0,6,1],[6,6,6,7],[14,0,14,7],[8,0,8,2],[8,5,8,7],[10,0,10,2],[12,0,12,7],[13,1,13,7]]}
[]
[null,null,"POA 2016 TRANSFERENCIA DE RECURSOS",null,null,null,"Procedimiento"]
[null,null,null,null,null,null,"Código : CPR-P01-F04"]
[null,null,null,null,null,null,"Revisión : ","Página 1de 1"]
[]
[]
["Fecha:   ",null,"2016-04-26",null,null,"No. de Transferencia:","UTC/SV/DEC/026/2016"]
[]
["Nombre de la Unidad Responsable:",null,null,null,null,"SECRETARÍA DE VINCULACIÓN"]
[]
["Monto Total Solicitado: ",null,null,null,null,1241]
[]
["DESCRIPCIÓN DE LA APLICACIÓN SOLICITADA."]
[]
["Origen de los recursos:"]
["REF.","PROCESO","PARTIDA","MES","FINANCIAMIENTO","NOMBRE DE LA PARTIDA PRESUPUESTAL",null,"IMPORTE"]
[1,"IP-VIN-MOV-INT-16",3821,"AGO.","PROPIOS","GASTOS DE ÓRDEN SOCIAL Y CULTURAL",null,1241]
[]
[]
[]
[]
[]
[]
[]
[]
[]
[]
[null,null,null,null,null,"SUMA TOTAL A TRANSFERIR",null,{"$f":"SUM(H17:H27)","v":1241}]
[]
["Destino de recursos:"]
["REF.","PROCESO","PARTIDA","MES","RECURSO","NOMBRE DE LA PARTIDA PRESUPUESTAL",null,"IMPORTE"]
[1,"IP-VIN-MOV-INT-16",2214,"ABRIL","PROPIOS","ALIMENTACIÓN DE PERSONAS POR EL DESARROLLO DE OTROS PROGRAMAS INSTITUCIONALES.",null,791]
[2,"IP-VIN-MOV-INT-16",2611,"ABRIL","PROPIOS","COMBUSTIBLE",null,450]
[]
[]
[]
[]
[]
[]
[]
[]
[]
[]
[null,null,null,null,null,"SUMA TOTAL A TRANSFERIR",null,{"$f":"SUM(H32:H43)","v":1241}]
[]
["JUSTIFICACIÓN: PARA DAR SUFICIENCIA A LA SOLICITUD DV/DEC/110 Y 111/2016.(COMIDA CON LA CHF ODILE ROBLIN)"]
[" "]
[]
["REQUISITOS: La información solicitada en este formato deberá presentarse en forma completa atendiendo a lo requerido en cada uno de los recuadros señalados. Se deben incluir los anexos."]

{"sheet":"027 GLA","index":27,"n_rows":49,"n_cols":8,"rows_kept":49,"cut":false,"hidden":true,"merged":[[8,0,8,2],[8,5,8,7],[10,0,10,2],[1,0,4,1],[1,2,4,5],[1,6,1,7],[2,6,2,7],[6,0,6,1],[6,6,6,7],[12,0,12,7],[13,1,13,7],[26,5,26,6],[15,5,15,6],[16,5,16,6],[17,5,17,6],[18,5,18,6],[19,5,19,6],[20,5,20,6],[21,5,21,6],[14,0,14,7],[22,5,22,6],[23,5,23,6],[24,5,24,6],[25,5,25,6],[38,5,38,6],[27,0,27,2],[27,5,27,6],[29,0,29,7],[30,5,30,6],[31,5,31,6],[37,5,37,6],[32,5,32,6],[33,5,33,6],[34,5,34,6],[35,5,35,6],[36,5,36,6],[44,1,44,7],[45,0,45,7],[46,0,47,7],[48,0,49,7],[39,5,39,6],[40,5,40,6],[41,5,41,6],[42,5,42,6],[43,0,43,2],[43,5,43,6]]}
[]
[null,null,"POA 2016 TRANSFERENCIA DE RECURSOS",null,null,null,"Procedimiento"]
[null,null,null,null,null,null,"Código : CPR-P01-F04"]
[null,null,null,null,null,null,"Revisión : ","Página 1de 1"]
[]
[]
["Fecha:   ",null,"2016-05-02",null,null,"No. de Transferencia:","UTC/SV/DEC/027/2016"]
[]
["Nombre de la Unidad Responsable:",null,null,null,null,"SECRETARÍA DE VINCULACIÓN"]
[]
["Monto Total Solicitado: ",null,null,null,null,2300]
[]
["DESCRIPCIÓN DE LA APLICACIÓN SOLICITADA."]
[]
["Origen de los recursos:"]
["REF.","PROCESO","PARTIDA","MES","FINANCIAMIENTO","NOMBRE DE LA PARTIDA PRESUPUESTAL",null,"IMPORTE"]
[1,"IP-VIN-MEXPROTEC-2016",3921,"MAY","PROPIOS","IMPUESTOS Y DERECHOS",null,2300]
[]
[]
[]
[]
[]
[]
[]
[]
[]
[]
[null,null,null,null,null,"SUMA TOTAL A TRANSFERIR",null,{"$f":"SUM(H17:H27)","v":2300}]
[]
["Destino de recursos:"]
["REF.","PROCESO","PARTIDA","MES","RECURSO","NOMBRE DE LA PARTIDA PRESUPUESTAL",null,"IMPORTE"]
[1,"IP-VIN-MEXPROTEC-2016",3821,"ABRIL","PROPIOS","GASTOS DE ORDEN SOCIA Y CULTURAL",null,2300]
[]
[]
[]
[]
[]
[]
[]
[]
[]
[]
[]
[null,null,null,null,null,"SUMA TOTAL A TRANSFERIR",null,{"$f":"SUM(H32:H43)","v":2300}]
[]
["JUSTIFICACIÓN: PARA DAR SUFICIENCIA A LA SOLICITUD DV/DEC/106/2016.\n(HOSPEDAJE ALUMNOS MEXPROTEC QUERETARO)"]
[" "]
[]
["REQUISITOS: La información solicitada en este formato deberá presentarse en forma completa atendiendo a lo requerido en cada uno de los recuadros señalados. Se deben incluir los anexos."]

{"sheet":"028 GLA","index":28,"n_rows":49,"n_cols":8,"rows_kept":49,"cut":false,"hidden":true,"merged":[[44,1,44,7],[48,0,49,7],[45,0,47,7],[39,5,39,6],[40,5,40,6],[41,5,41,6],[42,5,42,6],[43,0,43,2],[43,5,43,6],[38,5,38,6],[27,0,27,2],[27,5,27,6],[29,0,29,7],[30,5,30,6],[31,5,31,6],[32,5,32,6],[33,5,33,6],[34,5,34,6],[35,5,35,6],[36,5,36,6],[37,5,37,6],[26,5,26,6],[15,5,15,6],[16,5,16,6],[17,5,17,6],[18,5,18,6],[19,5,19,6],[20,5,20,6],[21,5,21,6],[22,5,22,6],[23,5,23,6],[24,5,24,6],[25,5,25,6],[1,0,4,1],[1,2,4,5],[1,6,1,7],[2,6,2,7],[6,0,6,1],[6,6,6,7],[14,0,14,7],[8,0,8,2],[8,5,8,7],[10,0,10,2],[12,0,12,7],[13,1,13,7]]}
[]
[null,null,"POA 2016 TRANSFERENCIA DE RECURSOS",null,null,null,"Procedimiento"]
[null,null,null,null,null,null,"Código : CPR-P01-F04"]
[null,null,null,null,null,null,"Revisión : ","Página 1de 1"]
[]
[]
["Fecha:   ",null,"2016-05-03",null,null,"No. de Transferencia:","UTC/SV/DEC/028/2016"]
[]
["Nombre de la Unidad Responsable:",null,null,null,null,"SECRETARÍA DE VINCULACIÓN"]
[]
["Monto Total Solicitado: ",null,null,null,null,1700]
[]
["DESCRIPCIÓN DE LA APLICACIÓN SOLICITADA."]
[]
["Origen de los recursos:"]
["REF.","PROCESO","PARTIDA","MES","FINANCIAMIENTO","NOMBRE DE LA PARTIDA PRESUPUESTAL",null,"IMPORTE"]
[1,"PP-VIN-EDU-CONT-2016",2214,"MAY","PRODUCTIVO","ALIMENTACIÓN DE PNAS POR EL DESARROLLO DE PROG INST",null,1700]
[]
[]
[]
[]
[]
[]
[]
[]
[]
[]
[null,null,null,null,null,"SUMA TOTAL A TRANSFERIR",null,{"$f":"SUM(H17:H27)","v":1700}]
[]
["Destino de recursos:"]
["REF.","PROCESO","PARTIDA","MES","RECURSO","NOMBRE DE LA PARTIDA PRESUPUESTAL",null,"IMPORTE"]
[1,"PP-VIN-EDU-CONT-2016",2211,"MAY","PRODUCTIVO","ALIMENTOS PARA EL PERSONAL INSTITUCIONAL",null,1700]
[]
[]
[]
[]
[]
[]
[]
[]
[]
[]
[]
[null,null,null,null,null,"SUMA TOTAL A TRANSFERIR",null,{"$f":"SUM(H32:H43)","v":1700}]
[]
["JUSTIFICACIÓN: PARA DAR SUFICIENCIA A LA SOLICITUD DV/DEC/113/2016.\n(COFFEEBREAK TALLER DE BARISTA)"]
[]
[]
["REQUISITOS: La información solicitada en este formato deberá presentarse en forma completa atendiendo a lo requerido en cada uno de los recuadros señalados. Se deben incluir los anexos."]

{"sheet":"029","index":29,"n_rows":49,"n_cols":8,"rows_kept":49,"cut":false,"hidden":true,"merged":[[8,0,8,2],[8,5,8,7],[10,0,10,2],[1,0,4,1],[1,2,4,5],[1,6,1,7],[2,6,2,7],[6,0,6,1],[6,6,6,7],[12,0,12,7],[13,1,13,7],[26,5,26,6],[15,5,15,6],[16,5,16,6],[17,5,17,6],[18,5,18,6],[19,5,19,6],[20,5,20,6],[21,5,21,6],[14,0,14,7],[22,5,22,6],[23,5,23,6],[24,5,24,6],[25,5,25,6],[38,5,38,6],[27,0,27,2],[27,5,27,6],[29,0,29,7],[30,5,30,6],[31,5,31,6],[37,5,37,6],[32,5,32,6],[33,5,33,6],[34,5,34,6],[35,5,35,6],[36,5,36,6],[44,1,44,7],[45,0,45,7],[46,0,47,7],[48,0,49,7],[39,5,39,6],[40,5,40,6],[41,5,41,6],[42,5,42,6],[43,0,43,2],[43,5,43,6]]}
[]
[null,null,"POA 2016 TRANSFERENCIA DE RECURSOS",null,null,null,"Procedimiento"]
[null,null,null,null,null,null,"Código : CPR-P01-F04"]
[null,null,null,null,null,null,"Revisión : ","Página 1de 1"]
[]
[]
["Fecha:   ",null,"2016-05-05",null,null,"No. de Transferencia:","UTC/SV/DEC/029/2016"]
[]
["Nombre de la Unidad Responsable:",null,null,null,null,"SECRETARÍA DE VINCULACIÓN"]
[]
["Monto Total Solicitado: ",null,null,null,null,587]
[]
["DESCRIPCIÓN DE LA APLICACIÓN SOLICITADA."]
[]
["Origen de los recursos:"]
["REF.","PROCESO","PARTIDA","MES","FINANCIAMIENTO","NOMBRE DE LA PARTIDA PRESUPUESTAL",null,"IMPORTE"]
[1,"1902E0425219",3761,"ENERO","FEDERAL","VIÁTICOS EN EL EXTRANJERO",null,587]
[]
[]
[]
[]
[]
[]
[]
[]
[]
[]
[null,null,null,null,null,"SUMA TOTAL A TRANSFERIR",null,{"$f":"SUM(H17:H27)","v":587}]
[]
["Destino de recursos:"]
["REF.","PROCESO","PARTIDA","MES","RECURSO","NOMBRE DE LA PARTIDA PRESUPUESTAL",null,"IMPORTE"]
[1,"1902E0425219",3181,"MAYO","FEDERAL","SERVICIOS INTEGRALES DE TRASLADO Y VIATICOS",null,587]
[]
[]
[]
[]
[]
[]
[]
[]
[]
[]
[]
[null,null,null,null,null,"SUMA TOTAL A TRANSFERIR",null,{"$f":"SUM(H32:H43)","v":587}]
[]
["JUSTIFICACIÓN: PARA DAR SUFICIENCIA A LA SOLICITUD DV/DEC/ 114 Y 115/2016.(envíos nacionales)."]
[" "]
[]
["REQUISITOS: La información solicitada en este formato deberá presentarse en forma completa atendiendo a lo requerido en cada uno de los recuadros señalados. Se deben incluir los anexos."]

{"sheet":"030","index":30,"n_rows":49,"n_cols":8,"rows_kept":49,"cut":false,"hidden":true,"merged":[[44,1,44,7],[45,0,45,7],[46,0,47,7],[48,0,49,7],[39,5,39,6],[40,5,40,6],[41,5,41,6],[42,5,42,6],[43,0,43,2],[43,5,43,6],[38,5,38,6],[27,0,27,2],[27,5,27,6],[29,0,29,7],[30,5,30,6],[31,5,31,6],[32,5,32,6],[33,5,33,6],[34,5,34,6],[35,5,35,6],[36,5,36,6],[37,5,37,6],[26,5,26,6],[15,5,15,6],[16,5,16,6],[17,5,17,6],[18,5,18,6],[19,5,19,6],[20,5,20,6],[21,5,21,6],[22,5,22,6],[23,5,23,6],[24,5,24,6],[25,5,25,6],[1,0,4,1],[1,2,4,5],[1,6,1,7],[2,6,2,7],[6,0,6,1],[6,6,6,7],[14,0,14,7],[8,0,8,2],[8,5,8,7],[10,0,10,2],[12,0,12,7],[13,1,13,7]]}
[]
[null,null,"POA 2016 TRANSFERENCIA DE RECURSOS",null,null,null,"Procedimiento"]
[null,null,null,null,null,null,"Código : CPR-P01-F04"]
[null,null,null,null,null,null,"Revisión : ","Página 1de 1"]
[]
[]
["Fecha:   ",null,"2016-05-17",null,null,"No. de Transferencia:","UTC/SV/DEC/030/2016"]
[]
["Nombre de la Unidad Responsable:",null,null,null,null,"SECRETARÍA DE VINCULACIÓN"]
[]
["Monto Total Solicitado: ",null,null,null,null,294]
[]
["DESCRIPCIÓN DE LA APLICACIÓN SOLICITADA."]
[]
["Origen de los recursos:"]
["REF.","PROCESO","PARTIDA","MES","FINANCIAMIENTO","NOMBRE DE LA PARTIDA PRESUPUESTAL",null,"IMPORTE"]
[1,"1902E0425219",3751,"MAYO","FEDERAL","VIÁTICOS EN EL PAÍS",null,294]
[]
[]
[]
[]
[]
[]
[]
[]
[]
[]
[null,null,null,null,null,"SUMA TOTAL A TRANSFERIR",null,{"$f":"SUM(H17:H27)","v":294}]
[]
["Destino de recursos:"]
["REF.","PROCESO","PARTIDA","MES","RECURSO","NOMBRE DE LA PARTIDA PRESUPUESTAL",null,"IMPORTE"]
[1,"1902E0425219",3181,"MAYO","FEDERAL","SERVICIOS POSTALES Y TELEGRÁFICOS",null,294]
[]
[]
[]
[]
[]
[]
[]
[]
[]
[]
[]
[null,null,null,null,null,"SUMA TOTAL A TRANSFERIR",null,{"$f":"SUM(H32:H43)","v":294}]
[]
["JUSTIFICACIÓN: PARA DAR SUFICIENCIA A LA SOLICITUD DV/DEC/121/16."]
[" "]
[]
["REQUISITOS: La información solicitada en este formato deberá presentarse en forma completa atendiendo a lo requerido en cada uno de los recuadros señalados. Se deben incluir los anexos."]

{"sheet":"031","index":31,"n_rows":49,"n_cols":8,"rows_kept":49,"cut":false,"hidden":true,"merged":[[8,0,8,2],[8,5,8,7],[10,0,10,2],[1,0,4,1],[1,2,4,5],[1,6,1,7],[2,6,2,7],[6,0,6,1],[6,6,6,7],[12,0,12,7],[13,1,13,7],[26,5,26,6],[15,5,15,6],[16,5,16,6],[17,5,17,6],[18,5,18,6],[19,5,19,6],[20,5,20,6],[21,5,21,6],[14,0,14,7],[22,5,22,6],[23,5,23,6],[24,5,24,6],[25,5,25,6],[38,5,38,6],[27,0,27,2],[27,5,27,6],[29,0,29,7],[30,5,30,6],[31,5,31,6],[37,5,37,6],[32,5,32,6],[33,5,33,6],[34,5,34,6],[35,5,35,6],[36,5,36,6],[44,1,44,7],[45,0,45,7],[46,0,47,7],[48,0,49,7],[39,5,39,6],[40,5,40,6],[41,5,41,6],[42,5,42,6],[43,0,43,2],[43,5,43,6]]}
[]
[null,null,"POA 2016 TRANSFERENCIA DE RECURSOS",null,null,null,"Procedimiento"]
[null,null,null,null,null,null,"Código : CPR-P01-F04"]
[null,null,null,null,null,null,"Revisión : ","Página 1de 1"]
[]
[]
["Fecha:   ",null,"2016-05-17",null,null,"No. de Transferencia:","UTC/SV/DEC/031/2016"]
[]
["Nombre de la Unidad Responsable:",null,null,null,null,"SECRETARÍA DE VINCULACIÓN"]
[]
["Monto Total Solicitado: ",null,null,null,null,4027]
[]
["DESCRIPCIÓN DE LA APLICACIÓN SOLICITADA."]
[]
["Origen de los recursos:"]
["REF.","PROCESO","PARTIDA","MES","FINANCIAMIENTO","NOMBRE DE LA PARTIDA PRESUPUESTAL",null,"IMPORTE"]
[1,"IP-VIN-MOV-INT-16",3821,"AGO.","PROPIOS","GASTOS DE ÓRDEN SOCIAL Y CULTURAL",null,4027]
[]
[]
[]
[]
[]
[]
[]
[]
[]
[]
[null,null,null,null,null,"SUMA TOTAL A TRANSFERIR",null,{"$f":"SUM(H17:H27)","v":4027}]
[]
["Destino de recursos:"]
["REF.","PROCESO","PARTIDA","MES","RECURSO","NOMBRE DE LA PARTIDA PRESUPUESTAL",null,"IMPORTE"]
[1,"IP-VIN-MOV-INT-16",3711,"MAYO","PROPIOS","PASAJES AEREOS NACIONALES",null,4027]
[]
[]
[]
[]
[]
[]
[]
[]
[]
[]
[]
[null,null,null,null,null,"SUMA TOTAL A TRANSFERIR",null,{"$f":"SUM(H32:H43)","v":4027}]
[]
["JUSTIFICACIÓN: PARA DAR SUFICIENCIA A LA SOLICITUD DV/DEC/122/16."]
[" "]
[]
["REQUISITOS: La información solicitada en este formato deberá presentarse en forma completa atendiendo a lo requerido en cada uno de los recuadros señalados. Se deben incluir los anexos."]

{"sheet":"032","index":32,"n_rows":49,"n_cols":8,"rows_kept":49,"cut":false,"hidden":true,"merged":[[44,1,44,7],[45,0,45,7],[46,0,47,7],[48,0,49,7],[39,5,39,6],[40,5,40,6],[41,5,41,6],[42,5,42,6],[43,0,43,2],[43,5,43,6],[38,5,38,6],[27,0,27,2],[27,5,27,6],[29,0,29,7],[30,5,30,6],[31,5,31,6],[32,5,32,6],[33,5,33,6],[34,5,34,6],[35,5,35,6],[36,5,36,6],[37,5,37,6],[26,5,26,6],[15,5,15,6],[16,5,16,6],[17,5,17,6],[18,5,18,6],[19,5,19,6],[20,5,20,6],[21,5,21,6],[22,5,22,6],[23,5,23,6],[24,5,24,6],[25,5,25,6],[1,0,4,1],[1,2,4,5],[1,6,1,7],[2,6,2,7],[6,0,6,1],[6,6,6,7],[14,0,14,7],[8,0,8,2],[8,5,8,7],[10,0,10,2],[12,0,12,7],[13,1,13,7]]}
[]
[null,null,"POA 2016 TRANSFERENCIA DE RECURSOS",null,null,null,"Procedimiento"]
[null,null,null,null,null,null,"Código : CPR-P01-F04"]
[null,null,null,null,null,null,"Revisión : ","Página 1de 1"]
[]
[]
["Fecha:   ",null,"2016-06-13",null,null,"No. de Transferencia:","UTC/SV/DEC/032/2016"]
[]
["Nombre de la Unidad Responsable:",null,null,null,null,"SECRETARÍA DE VINCULACIÓN"]
[]
["Monto Total Solicitado: ",null,null,null,null,800]
[]
["DESCRIPCIÓN DE LA APLICACIÓN SOLICITADA."]
[]
["Origen de los recursos:"]
["REF.","PROCESO","PARTIDA","MES","FINANCIAMIENTO","NOMBRE DE LA PARTIDA PRESUPUESTAL",null,"IMPORTE"]
[1,"1902E0425219",3761,"MAR.","federal","VIÁTICOS EN EL EXTRANJERO",null,800]
[]
[]
[]
[]
[]
[]
[]
[]
[]
[]
[null,null,null,null,null,"SUMA TOTAL A TRANSFERIR",null,{"$f":"SUM(H17:H27)","v":800}]
[]
["Destino de recursos:"]
["REF.","PROCESO","PARTIDA","MES","RECURSO","NOMBRE DE LA PARTIDA PRESUPUESTAL",null,"IMPORTE"]
[1,"1902E0425219",3181,"JUNIO","FEDERAL","SERVICIOS POSTALES Y TELEGRÁFICOS",null,800]
[]
[]
[]
[]
[]
[]
[]
[]
[]
[]
[]
[null,null,null,null,null,"SUMA TOTAL A TRANSFERIR",null,{"$f":"SUM(H32:H43)","v":800}]
[]
["JUSTIFICACIÓN: PARA DAR SUFICIENCIA A LA SOLICITUD DV/DEC/139/16.(ENVÍO INT.MENDOZA ARGENTINA, )"]
[" "]
[]
["REQUISITOS: La información solicitada en este formato deberá presentarse en forma completa atendiendo a lo requerido en cada uno de los recuadros señalados. Se deben incluir los anexos."]

{"sheet":"033","index":33,"n_rows":49,"n_cols":8,"rows_kept":49,"cut":false,"hidden":true,"merged":[[8,0,8,2],[8,5,8,7],[10,0,10,2],[1,0,4,1],[1,2,4,5],[1,6,1,7],[2,6,2,7],[6,0,6,1],[6,6,6,7],[12,0,12,7],[13,1,13,7],[26,5,26,6],[15,5,15,6],[16,5,16,6],[17,5,17,6],[18,5,18,6],[19,5,19,6],[20,5,20,6],[21,5,21,6],[14,0,14,7],[22,5,22,6],[23,5,23,6],[24,5,24,6],[25,5,25,6],[38,5,38,6],[27,0,27,2],[27,5,27,6],[29,0,29,7],[30,5,30,6],[31,5,31,6],[37,5,37,6],[32,5,32,6],[33,5,33,6],[34,5,34,6],[35,5,35,6],[36,5,36,6],[44,1,44,7],[45,0,45,7],[46,0,47,7],[48,0,49,7],[39,5,39,6],[40,5,40,6],[41,5,41,6],[42,5,42,6],[43,0,43,2],[43,5,43,6]]}
[]
[null,null,"POA 2016 TRANSFERENCIA DE RECURSOS",null,null,null,"Procedimiento"]
[null,null,null,null,null,null,"Código : CPR-P01-F04"]
[null,null,null,null,null,null,"Revisión : ","Página 1de 1"]
[]
[]
["Fecha:   ",null,"2016-06-21",null,null,"No. de Transferencia:","UTC/SV/DEC/033/2016"]
[]
["Nombre de la Unidad Responsable:",null,null,null,null,"SECRETARÍA DE VINCULACIÓN"]
[]
["Monto Total Solicitado: ",null,null,null,null,750]
[]
["DESCRIPCIÓN DE LA APLICACIÓN SOLICITADA."]
[]
["Origen de los recursos:"]
["REF.","PROCESO","PARTIDA","MES","FINANCIAMIENTO","NOMBRE DE LA PARTIDA PRESUPUESTAL",null,"IMPORTE"]
[1,"IP-VIN-MOV-INT-16",3821,"AGO.","PROPIOS","GASTOS DE ÓRDEN SOCIAL Y CULTURAL",null,750]
[]
[]
[]
[]
[]
[]
[]
[]
[]
[]
[null,null,null,null,null,"SUMA TOTAL A TRANSFERIR",null,{"$f":"SUM(H17:H27)","v":750}]
[]
["Destino de recursos:"]
["REF.","PROCESO","PARTIDA","MES","RECURSO","NOMBRE DE LA PARTIDA PRESUPUESTAL",null,"IMPORTE"]
[1,"IP-VIN-MOV-INT-16",3181,"JUN.","PROPIOS","SERVICIOS POSTALES Y TELEGRÁFICOS",null,750]
[]
[]
[]
[]
[]
[]
[]
[]
[]
[]
[]
[null,null,null,null,null,"SUMA TOTAL A TRANSFERIR",null,{"$f":"SUM(H32:H43)","v":750}]
[]
["JUSTIFICACIÓN: PARA DAR SUFICIENCIA A LA SOLICITUD DV/DEC/146/16.(ENVÍO INT. A CLAUDIA MILENA DÍAZ ULLOA. )"]
[" "]
[]
["REQUISITOS: La información solicitada en este formato deberá presentarse en forma completa atendiendo a lo requerido en cada uno de los recuadros señalados. Se deben incluir los anexos."]

{"sheet":"034","index":34,"n_rows":49,"n_cols":8,"rows_kept":49,"cut":false,"hidden":true,"merged":[[8,0,8,2],[8,5,8,7],[10,0,10,2],[1,0,4,1],[1,2,4,5],[1,6,1,7],[2,6,2,7],[6,0,6,1],[6,6,6,7],[12,0,12,7],[13,1,13,7],[26,5,26,6],[15,5,15,6],[16,5,16,6],[17,5,17,6],[18,5,18,6],[19,5,19,6],[20,5,20,6],[21,5,21,6],[14,0,14,7],[22,5,22,6],[23,5,23,6],[24,5,24,6],[25,5,25,6],[38,5,38,6],[27,0,27,2],[27,5,27,6],[29,0,29,7],[30,5,30,6],[31,5,31,6],[37,5,37,6],[32,5,32,6],[33,5,33,6],[34,5,34,6],[35,5,35,6],[36,5,36,6],[44,1,44,7],[45,0,45,7],[46,0,47,7],[48,0,49,7],[39,5,39,6],[40,5,40,6],[41,5,41,6],[42,5,42,6],[43,0,43,2],[43,5,43,6]]}
[]
[null,null,"POA 2016 TRANSFERENCIA DE RECURSOS",null,null,null,"Procedimiento"]
[null,null,null,null,null,null,"Código : CPR-P01-F04"]
[null,null,null,null,null,null,"Revisión : ","Página 1de 1"]
[]
[]
["Fecha:   ",null,"2016-06-21",null,null,"No. de Transferencia:","UTC/SV/DEC/034/2016"]
[]
["Nombre de la Unidad Responsable:",null,null,null,null,"SECRETARÍA DE VINCULACIÓN"]
[]
["Monto Total Solicitado: ",null,null,null,null,750]
[]
["DESCRIPCIÓN DE LA APLICACIÓN SOLICITADA."]
[]
["Origen de los recursos:"]
["REF.","PROCESO","PARTIDA","MES","FINANCIAMIENTO","NOMBRE DE LA PARTIDA PRESUPUESTAL",null,"IMPORTE"]
[1,"PP-VIN INTERN-16",3761,"MAYO","PRODUCTIVO","VIÁTICOS EN EL EXTRANJERO",null,750]
[]
[]
[]
[]
[]
[]
[]
[]
[]
[]
[null,null,null,null,null,"SUMA TOTAL A TRANSFERIR",null,{"$f":"SUM(H17:H27)","v":750}]
[]
["Destino de recursos:"]
["REF.","PROCESO","PARTIDA","MES","RECURSO","NOMBRE DE LA PARTIDA PRESUPUESTAL",null,"IMPORTE"]
[1,"PP-VIN-INTERN-16",3181,"JUN.","PRODUCTIVO","SERVICIOS POSTALES Y TELEGRÁFICOS",null,750]
[]
[]
[]
[]
[]
[]
[]
[]
[]
[]
[]
[null,null,null,null,null,"SUMA TOTAL A TRANSFERIR",null,{"$f":"SUM(H32:H43)","v":750}]
[]
["JUSTIFICACIÓN: PARA DAR SUFICIENCIA A LA SOLICITUD DV/DEC/147/16.(ENVÍO INT. A LUIS MORENO IZQUIERDO Instituto de Economía Internacional Edificio de Institutos Universitarios UNIVERSIDAD DE ALICANTE )"]
[" "]
[]
["REQUISITOS: La información solicitada en este formato deberá presentarse en forma completa atendiendo a lo requerido en cada uno de los recuadros señalados. Se deben incluir los anexos."]

{"sheet":"035","index":35,"n_rows":49,"n_cols":8,"rows_kept":49,"cut":false,"hidden":true,"merged":[[8,0,8,2],[8,5,8,7],[10,0,10,2],[1,0,4,1],[1,2,4,5],[1,6,1,7],[2,6,2,7],[6,0,6,1],[6,6,6,7],[12,0,12,7],[13,1,13,7],[26,5,26,6],[15,5,15,6],[16,5,16,6],[17,5,17,6],[18,5,18,6],[19,5,19,6],[20,5,20,6],[21,5,21,6],[14,0,14,7],[22,5,22,6],[23,5,23,6],[24,5,24,6],[25,5,25,6],[38,5,38,6],[27,0,27,2],[27,5,27,6],[29,0,29,7],[30,5,30,6],[31,5,31,6],[37,5,37,6],[32,5,32,6],[33,5,33,6],[34,5,34,6],[35,5,35,6],[36,5,36,6],[44,1,44,7],[45,0,45,7],[46,0,47,7],[48,0,49,7],[39,5,39,6],[40,5,40,6],[41,5,41,6],[42,5,42,6],[43,0,43,2],[43,5,43,6]]}
[]
[null,null,"POA 2016 TRANSFERENCIA DE RECURSOS",null,null,null,"Procedimiento"]
[null,null,null,null,null,null,"Código : CPR-P01-F04"]
[null,null,null,null,null,null,"Revisión : ","Página 1de 1"]
[]
[]
["Fecha:   ",null,"2016-06-21",null,null,"No. de Transferencia:","UTC/SV/DEC/035/2016"]
[]
["Nombre de la Unidad Responsable:",null,null,null,null,"SECRETARÍA DE VINCULACIÓN"]
[]
["Monto Total Solicitado: ",null,null,null,null,382.56]
[]
["DESCRIPCIÓN DE LA APLICACIÓN SOLICITADA."]
[]
["Origen de los recursos:"]
["REF.","PROCESO","PARTIDA","MES","FINANCIAMIENTO","NOMBRE DE LA PARTIDA PRESUPUESTAL",null,"IMPORTE"]
[1,"IP-VIN-MEXPROTEC-16",3821,"MAYO","PROPIOS","GASTOS DE ÓRDEN SOCIAL Y CULTURAL",null,382.56]
[]
[]
[]
[]
[]
[]
[]
[]
[]
[]
[null,null,null,null,null,"SUMA TOTAL A TRANSFERIR",null,{"$f":"SUM(H17:H27)","v":382.56}]
[]
["Destino de recursos:"]
["REF.","PROCESO","PARTIDA","MES","RECURSO","NOMBRE DE LA PARTIDA PRESUPUESTAL",null,"IMPORTE"]
[1,"IP-VIN-MEXPROTEC-16",3181,"JUN.","PROPIOS","SERVICIOS POSTALES Y TELEGRÁFICOS",null,382.56]
[]
[]
[]
[]
[]
[]
[]
[]
[]
[]
[]
[null,null,null,null,null,"SUMA TOTAL A TRANSFERIR",null,{"$f":"SUM(H32:H43)","v":382.56}]
[]
["JUSTIFICACIÓN: PARA DAR SUFICIENCIA A LA SOLICITUD DV/DEC/150/16.(REEMBOLSO A LIC. MARIA REGINA OTERO ROCHE POR CONCEPTO DE ENVÍO NACIONAL A Lic. Lorena Alvarado Buendía   CGUTyP.)"]
[" "]
[]
["REQUISITOS: La información solicitada en este formato deberá presentarse en forma completa atendiendo a lo requerido en cada uno de los recuadros señalados. Se deben incluir los anexos."]

{"sheet":"036","index":36,"n_rows":49,"n_cols":8,"rows_kept":49,"cut":false,"hidden":true,"merged":[[8,0,8,2],[8,5,8,7],[10,0,10,2],[1,0,4,1],[1,2,4,5],[1,6,1,7],[2,6,2,7],[6,0,6,1],[6,6,6,7],[12,0,12,7],[13,1,13,7],[26,5,26,6],[15,5,15,6],[16,5,16,6],[17,5,17,6],[18,5,18,6],[19,5,19,6],[20,5,20,6],[21,5,21,6],[14,0,14,7],[22,5,22,6],[23,5,23,6],[24,5,24,6],[25,5,25,6],[38,5,38,6],[27,0,27,2],[27,5,27,6],[29,0,29,7],[30,5,30,6],[31,5,31,6],[37,5,37,6],[32,5,32,6],[33,5,33,6],[34,5,34,6],[35,5,35,6],[36,5,36,6],[44,1,44,7],[45,0,45,7],[46,0,47,7],[48,0,49,7],[39,5,39,6],[40,5,40,6],[41,5,41,6],[42,5,42,6],[43,0,43,2],[43,5,43,6]]}
[]
[null,null,"POA 2016 TRANSFERENCIA DE RECURSOS",null,null,null,"Procedimiento"]
[null,null,null,null,null,null,"Código : CPR-P01-F04"]
[null,null,null,null,null,null,"Revisión : ","Página 1de 1"]
[]
[]
["Fecha:   ",null,"2016-06-22",null,null,"No. de Transferencia:","UTC/SV/DEC/036/2016"]
[]
["Nombre de la Unidad Responsable:",null,null,null,null,"SECRETARÍA DE VINCULACIÓN"]
[]
["Monto Total Solicitado: ",null,null,null,null,2500]
[]
["DESCRIPCIÓN DE LA APLICACIÓN SOLICITADA."]
[]
["Origen de los recursos:"]
["REF.","PROCESO","PARTIDA","MES","FINANCIAMIENTO","NOMBRE DE LA PARTIDA PRESUPUESTAL",null,"IMPORTE"]
[1,"PP-VIN-INTERN-16",3761,"MARZO","PRODUCTIVO","VIÁTICOS EN EL EXTRANJERO",null,2500]
[]
[]
[]
[]
[]
[]
[]
[]
[]
[]
[null,null,null,null,null,"SUMA TOTAL A TRANSFERIR",null,{"$f":"SUM(H17:H27)","v":2500}]
[]
["Destino de recursos:"]
["REF.","PROCESO","PARTIDA","MES","RECURSO","NOMBRE DE LA PARTIDA PRESUPUESTAL",null,"IMPORTE"]
[1,"PP-VIN-INTERN-16",3781,"JUN.","PRODUCTIVO","SERVICIOS INTEGRALES DE TRASLADO Y VIÁTICOS",null,2500]
[]
[]
[]
[]
[]
[]
[]
[]
[]
[]
[]
[null,null,null,null,null,"SUMA TOTAL A TRANSFERIR",null,{"$f":"SUM(H32:H43)","v":2500}]
[]
["JUSTIFICACIÓN: PARA DAR SUFICIENCIA A LA SOLICITUD DV/DEC/152/16.(GTOS. POR COMPROBAR, LIC. MARIA REGINA OTERO ROCHE POR CONCEPTO DE COMIDA CON LIC. OMAR MASTANDREA SECRETARIO DE EEXTENSIÓN DE CIENCIAS ECONÓMICAS Y SOCIALES UNIV. CATÓLICA DE LA PLATA.)"]
[" "]
[]
["REQUISITOS: La información solicitada en este formato deberá presentarse en forma completa atendiendo a lo requerido en cada uno de los recuadros señalados. Se deben incluir los anexos."]

{"sheet":"037 GLA","index":37,"n_rows":49,"n_cols":8,"rows_kept":49,"cut":false,"hidden":true,"merged":[[44,1,44,7],[45,0,47,7],[48,0,49,7],[39,5,39,6],[40,5,40,6],[41,5,41,6],[42,5,42,6],[43,0,43,2],[43,5,43,6],[38,5,38,6],[27,0,27,2],[27,5,27,6],[29,0,29,7],[30,5,30,6],[31,5,31,6],[32,5,32,6],[33,5,33,6],[34,5,34,6],[35,5,35,6],[36,5,36,6],[37,5,37,6],[26,5,26,6],[15,5,15,6],[16,5,16,6],[17,5,17,6],[18,5,18,6],[19,5,19,6],[20,5,20,6],[21,5,21,6],[22,5,22,6],[23,5,23,6],[24,5,24,6],[25,5,25,6],[1,0,4,1],[1,2,4,5],[1,6,1,7],[2,6,2,7],[6,0,6,1],[6,6,6,7],[14,0,14,7],[8,0,8,2],[8,5,8,7],[10,0,10,2],[12,0,12,7],[13,1,13,7]]}
[]
[null,null,"POA 2016 TRANSFERENCIA DE RECURSOS",null,null,null,"Procedimiento"]
[null,null,null,null,null,null,"Código : CPR-P01-F04"]
[null,null,null,null,null,null,"Revisión : ","Página 1de 1"]
[]
[]
["Fecha:   ",null,"2016-06-27",null,null,"No. de Transferencia:","UTC/SV/DEC/037/2016"]
[]
["Nombre de la Unidad Responsable:",null,null,null,null,"SECRETARÍA DE VINCULACIÓN"]
[]
["Monto Total Solicitado: ",null,null,null,null,750]
[]
["DESCRIPCIÓN DE LA APLICACIÓN SOLICITADA."]
[]
["Origen de los recursos:"]
["REF.","PROCESO","PARTIDA","MES","FINANCIAMIENTO","NOMBRE DE LA PARTIDA PRESUPUESTAL",null,"IMPORTE"]
[1,"PP-VIN-EDU-CONT-2016",3341,"JUN","PRODUCTIVO","SERVICIOS DE CAPACITACIÓN",null,750]
[]
[]
[]
[]
[]
[]
[]
[]
[]
[]
[null,null,null,null,null,"SUMA TOTAL A TRANSFERIR",null,{"$f":"SUM(H17:H27)","v":750}]
[]
["Destino de recursos:"]
["REF.","PROCESO","PARTIDA","MES","RECURSO","NOMBRE DE LA PARTIDA PRESUPUESTAL",null,"IMPORTE"]
[1,"PP-VIN-EDU-CONT-2016",3821,"JUN","PRODUCTIVO","GASTOS DE ORDEN SOCIAL Y CULTURAL",null,750]
[]
[]
[]
[]
[]
[]
[]
[]
[]
[]
[]
[null,null,null,null,null,"SUMA TOTAL A TRANSFERIR",null,{"$f":"SUM(H32:H43)","v":750}]
[]
["JUSTIFICACIÓN: PARA DAR SUFICIENCIA A LA SOLICITUD DV/DEC/157/2016 Y DV/DEC/159/2016.\n(PAGO SERVICIO DE APOYO INSTALACIONES)"]
[]
[]
["REQUISITOS: La información solicitada en este formato deberá presentarse en forma completa atendiendo a lo requerido en cada uno de los recuadros señalados. Se deben incluir los anexos."]

{"sheet":"038 GLA","index":38,"n_rows":49,"n_cols":8,"rows_kept":49,"cut":false,"hidden":true,"merged":[[8,0,8,2],[8,5,8,7],[10,0,10,2],[1,0,4,1],[1,2,4,5],[1,6,1,7],[2,6,2,7],[6,0,6,1],[6,6,6,7],[12,0,12,7],[13,1,13,7],[26,5,26,6],[15,5,15,6],[16,5,16,6],[17,5,17,6],[18,5,18,6],[19,5,19,6],[20,5,20,6],[21,5,21,6],[14,0,14,7],[22,5,22,6],[23,5,23,6],[24,5,24,6],[25,5,25,6],[38,5,38,6],[27,0,27,2],[27,5,27,6],[29,0,29,7],[30,5,30,6],[31,5,31,6],[37,5,37,6],[32,5,32,6],[33,5,33,6],[34,5,34,6],[35,5,35,6],[36,5,36,6],[44,1,44,7],[45,0,47,7],[48,0,49,7],[39,5,39,6],[40,5,40,6],[41,5,41,6],[42,5,42,6],[43,0,43,2],[43,5,43,6]]}
[]
[null,null,"POA 2016 TRANSFERENCIA DE RECURSOS",null,null,null,"Procedimiento"]
[null,null,null,null,null,null,"Código : CPR-P01-F04"]
[null,null,null,null,null,null,"Revisión : ","Página 1de 1"]
[]
[]
["Fecha:   ",null,"2016-06-30",null,null,"No. de Transferencia:","UTC/SV/DEC/038/2016"]
[]
["Nombre de la Unidad Responsable:",null,null,null,null,"SECRETARÍA DE VINCULACIÓN"]
[]
["Monto Total Solicitado: ",null,null,null,null,1500]
[]
["DESCRIPCIÓN DE LA APLICACIÓN SOLICITADA."]
[]
["Origen de los recursos:"]
["REF.","PROCESO","PARTIDA","MES","FINANCIAMIENTO","NOMBRE DE LA PARTIDA PRESUPUESTAL",null,"IMPORTE"]
[1,"PP-VIN-EDU-CONT-2016",2214,"JUL","PRODUCTIVO","ALIMENTACION DE PNAS POR EL DESARROLLO DE OTROS PROG",null,1500]
[]
[]
[]
[]
[]
[]
[]
[]
[]
[]
[null,null,null,null,null,"SUMA TOTAL A TRANSFERIR",null,{"$f":"SUM(H17:H27)","v":1500}]
[]
["Destino de recursos:"]
["REF.","PROCESO","PARTIDA","MES","RECURSO","NOMBRE DE LA PARTIDA PRESUPUESTAL",null,"IMPORTE"]
[1,"PP-VIN-EDU-CONT-2016",2941,"JUN","PRODUCTIVO","REFACCIONES Y ACCESORIOS MENORES DE EQP DE COMPUTO",null,1500]
[]
[]
[]
[]
[]
[]
[]
[]
[]
[]
[]
[null,null,null,null,null,"SUMA TOTAL A TRANSFERIR",null,{"$f":"SUM(H32:H43)","v":1500}]
[]
["JUSTIFICACIÓN: PARA DAR SUFICIENCIA A LA SOLICITUD DV/DEC/168/2016\n(COMPRA DE MODEM EDUCACIÓN CONTINUA)"]
[]
[]
["REQUISITOS: La información solicitada en este formato deberá presentarse en forma completa atendiendo a lo requerido en cada uno de los recuadros señalados. Se deben incluir los anexos."]

{"sheet":"039","index":39,"n_rows":49,"n_cols":8,"rows_kept":49,"cut":false,"hidden":true,"merged":[[44,1,44,7],[45,0,45,7],[46,0,47,7],[48,0,49,7],[39,5,39,6],[40,5,40,6],[41,5,41,6],[42,5,42,6],[43,0,43,2],[43,5,43,6],[38,5,38,6],[27,0,27,2],[27,5,27,6],[29,0,29,7],[30,5,30,6],[31,5,31,6],[32,5,32,6],[33,5,33,6],[34,5,34,6],[35,5,35,6],[36,5,36,6],[37,5,37,6],[26,5,26,6],[15,5,15,6],[16,5,16,6],[17,5,17,6],[18,5,18,6],[19,5,19,6],[20,5,20,6],[21,5,21,6],[22,5,22,6],[23,5,23,6],[24,5,24,6],[25,5,25,6],[1,0,4,1],[1,2,4,5],[1,6,1,7],[2,6,2,7],[6,0,6,1],[6,6,6,7],[14,0,14,7],[8,0,8,2],[8,5,8,7],[10,0,10,2],[12,0,12,7],[13,1,13,7]]}
[]
[null,null,"POA 2016 TRANSFERENCIA DE RECURSOS",null,null,null,"Procedimiento"]
[null,null,null,null,null,null,"Código : CPR-P01-F04"]
[null,null,null,null,null,null,"Revisión : ","Página 1de 1"]
[]
[]
["Fecha:   ",null,"2016-07-01",null,null,"No. de Transferencia:","UTC/SV/DEC/039/2016"]
[]
["Nombre de la Unidad Responsable:",null,null,null,null,"SECRETARÍA DE VINCULACIÓN"]
[]
["Monto Total Solicitado: ",null,null,null,null,5556.4]
[]
["DESCRIPCIÓN DE LA APLICACIÓN SOLICITADA."]
[]
["Origen de los recursos:"]
["REF.","PROCESO","PARTIDA","MES","FINANCIAMIENTO","NOMBRE DE LA PARTIDA PRESUPUESTAL",null,"IMPORTE"]
[1,"IP-VIN -MEXPROTEC-16",3711,"MAYO","PROPIOS","PASAJES AEREOS NACIONALES",null,5556.4]
[]
[]
[]
[]
[]
[]
[]
[]
[]
[]
[null,null,null,null,null,"SUMA TOTAL A TRANSFERIR",null,{"$f":"SUM(H17:H27)","v":5556.4}]
[]
["Destino de recursos:"]
["REF.","PROCESO","PARTIDA","MES","RECURSO","NOMBRE DE LA PARTIDA PRESUPUESTAL",null,"IMPORTE"]
[1,"IP-VIN-MEXPROTEC-16",3712,"JUNIO","PROPIOS","PASAJES AEREOS INTERNACIONALES",null,5556.4]
[]
[]
[]
[]
[]
[]
[]
[]
[]
[]
[]
[null,null,null,null,null,"SUMA TOTAL A TRANSFERIR",null,{"$f":"SUM(H32:H43)","v":5556.4}]
[]
["JUSTIFICACIÓN: PARA DAR SUFICIENCIA A LA SOLICITUD DV/DEC/167/16.(BOLETO DE AVION CANCUN-ONTARIO-CANCUN A NOMBRE DE LA MAESTRA DIANA MORALES PECH POR BECA DEL PROGRAMA DE FORMACIÓN DE PROFESORES DE UNIVERSIDADES TECNOLÓGICAS 2016)."]
[" "]
[]
["REQUISITOS: La información solicitada en este formato deberá presentarse en forma completa atendiendo a lo requerido en cada uno de los recuadros señalados. Se deben incluir los anexos."]

{"sheet":"040","index":40,"n_rows":49,"n_cols":8,"rows_kept":49,"cut":false,"hidden":true,"merged":[[8,0,8,2],[8,5,8,7],[10,0,10,2],[1,0,4,1],[1,2,4,5],[1,6,1,7],[2,6,2,7],[6,0,6,1],[6,6,6,7],[12,0,12,7],[13,1,13,7],[26,5,26,6],[15,5,15,6],[16,5,16,6],[17,5,17,6],[18,5,18,6],[19,5,19,6],[20,5,20,6],[21,5,21,6],[14,0,14,7],[22,5,22,6],[23,5,23,6],[24,5,24,6],[25,5,25,6],[38,5,38,6],[27,0,27,2],[27,5,27,6],[29,0,29,7],[30,5,30,6],[31,5,31,6],[37,5,37,6],[32,5,32,6],[33,5,33,6],[34,5,34,6],[35,5,35,6],[36,5,36,6],[44,1,44,7],[45,0,45,7],[46,0,47,7],[48,0,49,7],[39,5,39,6],[40,5,40,6],[41,5,41,6],[42,5,42,6],[43,0,43,2],[43,5,43,6]]}
[]
[null,null,"POA 2016 TRANSFERENCIA DE RECURSOS",null,null,null,"Procedimiento"]
[null,null,null,null,null,null,"Código : CPR-P01-F04"]
[null,null,null,null,null,null,"Revisión : ","Página 1de 1"]
[]
[]
["Fecha:   ",null,"2016-07-01",null,null,"No. de Transferencia:","UTC/SV/DEC/040/2016"]
[]
["Nombre de la Unidad Responsable:",null,null,null,null,"SECRETARÍA DE VINCULACIÓN"]
[]
["Monto Total Solicitado: ",null,null,null,null,800]
[]
["DESCRIPCIÓN DE LA APLICACIÓN SOLICITADA."]
[]
["Origen de los recursos:"]
["REF.","PROCESO","PARTIDA","MES","FINANCIAMIENTO","NOMBRE DE LA PARTIDA PRESUPUESTAL",null,"IMPORTE"]
[1,"PP-VIN-INTERN-16",3761,"MAR.","PRODUCTIVO","VIÁTICOS EN EL EXTRANJERO",null,800]
[]
[]
[]
[]
[]
[]
[]
[]
[]
[]
[null,null,null,null,null,"SUMA TOTAL A TRANSFERIR",null,{"$f":"SUM(H17:H27)","v":800}]
[]
["Destino de recursos:"]
["REF.","PROCESO","PARTIDA","MES","RECURSO","NOMBRE DE LA PARTIDA PRESUPUESTAL",null,"IMPORTE"]
[1,"PP-VIN-INTERN-16",3181,"JULIO","PRODUCTIVO","SERVICIOS POSTALES Y TELEGRÁFICOS",null,800]
[]
[]
[]
[]
[]
[]
[]
[]
[]
[]
[]
[null,null,null,null,null,"SUMA TOTAL A TRANSFERIR",null,{"$f":"SUM(H32:H43)","v":800}]
[]
["JUSTIFICACIÓN: PARA DAR SUFICIENCIA A LA SOLICITUD DV/DEC/169/16.(ENVÍO INTERNACIONAL, CONVENIO  A LIC. VERÓNICA LUNA FACULTAD DE CIENCIAS, LA PLATA, ARGENTINA)"]
[" "]
[]
["REQUISITOS: La información solicitada en este formato deberá presentarse en forma completa atendiendo a lo requerido en cada uno de los recuadros señalados. Se deben incluir los anexos."]

{"sheet":"041","index":41,"n_rows":49,"n_cols":8,"rows_kept":49,"cut":false,"hidden":true,"merged":[[44,1,44,7],[45,0,45,7],[46,0,47,7],[48,0,49,7],[39,5,39,6],[40,5,40,6],[41,5,41,6],[42,5,42,6],[43,0,43,2],[43,5,43,6],[38,5,38,6],[27,0,27,2],[27,5,27,6],[29,0,29,7],[30,5,30,6],[31,5,31,6],[32,5,32,6],[33,5,33,6],[34,5,34,6],[35,5,35,6],[36,5,36,6],[37,5,37,6],[26,5,26,6],[15,5,15,6],[16,5,16,6],[17,5,17,6],[18,5,18,6],[19,5,19,6],[20,5,20,6],[21,5,21,6],[22,5,22,6],[23,5,23,6],[24,5,24,6],[25,5,25,6],[1,0,4,1],[1,2,4,5],[1,6,1,7],[2,6,2,7],[6,0,6,1],[6,6,6,7],[14,0,14,7],[8,0,8,2],[8,5,8,7],[10,0,10,2],[12,0,12,7],[13,1,13,7]]}
[]
[null,null,"POA 2016 TRANSFERENCIA DE RECURSOS",null,null,null,"Procedimiento"]
[null,null,null,null,null,null,"Código : CPR-P01-F04"]
[null,null,null,null,null,null,"Revisión : ","Página 1de 1"]
[]
[]
["Fecha:   ",null,"2016-07-06",null,null,"No. de Transferencia:","UTC/SV/DEC/041/2016"]
[]
["Nombre de la Unidad Responsable:",null,null,null,null,"SECRETARÍA DE VINCULACIÓN"]
[]
["Monto Total Solicitado: ",null,null,null,null,800]
[]
["DESCRIPCIÓN DE LA APLICACIÓN SOLICITADA."]
[]
["Origen de los recursos:"]
["REF.","PROCESO","PARTIDA","MES","FINANCIAMIENTO","NOMBRE DE LA PARTIDA PRESUPUESTAL",null,"IMPORTE"]
[1,"IP-VIN-MOV-INT-16",3821,"AGO.","PRODUCTIVO","GASTOS DE ÓRDEN SOCIAL Y CULTURAL",null,800]
[]
[]
[]
[]
[]
[]
[]
[]
[]
[]
[null,null,null,null,null,"SUMA TOTAL A TRANSFERIR",null,{"$f":"SUM(H17:H27)","v":800}]
[]
["Destino de recursos:"]
["REF.","PROCESO","PARTIDA","MES","RECURSO","NOMBRE DE LA PARTIDA PRESUPUESTAL",null,"IMPORTE"]
[1,"IP-VIN-MOV-INT-16",3181,"JULIO","PRODUCTIVO","SERVICIOS POSTALES Y TELEGRÁFICOS",null,800]
[]
[]
[]
[]
[]
[]
[]
[]
[]
[]
[]
[null,null,null,null,null,"SUMA TOTAL A TRANSFERIR",null,{"$f":"SUM(H32:H43)","v":800}]
[]
["JUSTIFICACIÓN: PARA DAR SUFICIENCIA A LA SOLICITUD DV/DEC/171/16.(ENVÍO INTERNACIONAL,EXPEDIENTE DE ALUMNA DE INTERCAMBIO A LIC. ROMINA GONZÁLEZ )"]
[" "]
[]
["REQUISITOS: La información solicitada en este formato deberá presentarse en forma completa atendiendo a lo requerido en cada uno de los recuadros señalados. Se deben incluir los anexos."]

{"sheet":"TRANSFERENCIA","index":42,"n_rows":389,"n_cols":11,"rows_kept":389,"cut":false,"hidden":false,"merged":[[17,2,17,4],[18,2,18,4],[27,2,27,4],[19,2,19,4],[28,2,28,4],[34,2,34,4],[25,0,25,7],[24,2,24,6],[20,2,20,4],[21,2,21,4],[22,2,22,4],[26,2,26,4],[32,2,32,4],[33,2,33,4],[23,2,23,4],[29,2,29,4],[30,2,30,4],[31,2,31,4],[44,0,44,1],[51,0,51,1],[53,0,53,1],[38,0,41,7],[35,2,35,6],[37,0,37,7],[42,0,42,7],[56,5,56,6],[1,6,3,7],[0,0,5,1],[0,2,5,5],[6,0,6,1],[13,1,13,7],[14,0,14,7],[8,0,8,2],[10,0,10,2],[12,0,12,7],[0,6,0,7],[6,5,6,6],[8,5,8,7],[10,5,10,6],[16,2,16,4],[15,2,15,4]]}
[null,null,"TRANSFERENCIA DE RECURSOS ",null,null,null,"Procedimiento"]
[null,null,null,null,null,null,"Código : CPR-P01-F02"]
[]
[]
[null,null,null,null,null,null,"Version : 9","Página 1 de 1"]
[null,null,null,null,null,null,"2023-06-06"]
["Fecha:   ",null," ",null,null,"No. de Transferencia:",null," "]
[]
["Nombre de la Unidad Responsable:",null,null,null,null,"DESPACHO DE LA RECTORÍA"]
[]
["Monto Total Solicitado: ",null,null,null,null,{"$f":"SUM(H25)","v":0}]
[null,null,null,null,null," "]
["DESCRIPCIÓN DE LA APLICACIÓN SOLICITADA."]
[]
["Origen de los recursos:"]
["REF.","COMPONENTE Y/O PROYECTO","PARTIDA/NOMBRE",null,null,"MES","FINANCIAMIENTO","IMPORTE"]
[1," ",null,null,null,"",null," "]
[null," ",null,null,null,""," "," "]
[null," ",null,null,null,""]
[null,null,null,null,null,""]
[null," "]
[null," "]
[null," "]
[null," "]
[null,null,"TOTAL A TRANSFERIR",null,null,null,null,{"$f":"SUM(H17:H24)","v":0}]
["Destino de recursos:"]
["REF.","COMPONENTE Y/O PROYECTO","PARTIDA/NOMBRE",null,null,"MES","FINANCIAMIENTO","IMPORTE"]
[]
[null," ",null,null,null,"",null," "]
[]
[]
[]
[]
[]
[null," ",null,null,null,"",null," "]
[null,null," TOTAL A TRANSFERIR",null,null,null,null,{"$f":"SUM(H28:H35)","v":0}]
[]
["JUSTIFICACIÓN:"]
[" "]
[]
[]
[]
["REQUISITOS: La información solicitada en este formato deberá presentarse en forma completa atendiendo a lo requerido en cada uno de los recuadros señalados. Se deben incluir los anexos."]
[]
["SOLICITÓ\n"]
[]
[]
[]
[]
[]
[" "]
[" "]
[]
["UNIDAD RESPONSABLE"]
[]
[]
["    FECHA DE REVISIÓN: 06/JUNIO/2023",null,null,null,null,"NUM. REVISIÓN: 9",null,"CPR-P01-F02"]
[]
[]
[]
[]
[]
["11101 - DIETAS DE LEGISLADORES ESTATALES",null,"ENERO",null,null,"FEDERAL",1]
[null,null,"",null,null,"ESTATAL",2]
["11301 - SUELDOS BASE AL PERSONAL DE CONFIANZA",null,"FEBRERO",null,null,"INGRESOS  PROPIOS",3]
["11302 - SUELDOS AL PERSONAL DE BASE",null,"MARZO",null,null,"SAULT COLLEGE",4]
["11303 - VIDA CARA",null,"ABRIL",null,null,null,5]
["12101 - HONORARIOS ASIMILABLES A SALARIOS",null,"MAYO",null,null,null,6]
["12201 - SUELDO BASE AL PERSONAL EVENTUAL",null,"JUNIO",null,null,null,7]
["12301 - RETRIBUCIONES POR SERVICIOS DE CARÁCTER SOCIAL",null,"JULIO",null,null,null,8]
["13101 - PRIMA QUINQUENAL",null,"AGOSTO",null,null,null,9]
["13102 - PRIMA DE ANTIGÜEDAD",null,"SEPTIEMBRE",null,null,null,10]
["13103 - ESTÍMULO POR AÑOS DE SERVICIO",null,"OCTUBRE",null,null,null,11]
["13201 - PRESTACIONES DE FIN DE AÑO EN EFECTIVO",null,"NOVIEMBRE",null,null,null,12]
["13202 - PRIMA VACACIONAL",null,"DICIEMBRE",null,null,null,13]
["13203 - PRIMA DOMINICAL",null,null,null,null,null,14]
["13204 - PRESTACIONES DE FIN DE AÑO EN ESPECIE",null,null,null,null,null,15]
["13301 - HORAS EXTRAORDINARIAS",null,null,null,null,null,16]
["13401 - COMPENSACIÓN POR SERVICIOS AL PERSONAL DE BASE",null,null,null,null,null,17]
["13402 - COMPENSACIÓN POR SERVICIOS AL PERSONAL DE CONFIANZA",null,null,null,null,null,18]
["13403 - COMPENSACIÓN POR SERVICIOS EVENTUALES",null,null,null,null,null,19]
["13404 - COMPENSACIÓN POR TRABAJOS ESPECIALES",null,null,null,null,null,20]
["14101 - APORTACIONES AL ISSSTE"]
["14102 - APORTACIONES AL IMSS"]
["14104 - CUOTAS PARA ESTANCIAS INFANTILES"]
["14201 - CUOTAS AL FOVISSSTE"]
["14202 - CUOTAS AL INFONAVIT"]
["14301 - SISTEMA DE AHORRA PARA EL RETIRO"]
["14302 - APORTACIONES ADICIONALES POR CONCEPTO DE AHORRO SOLIDARIO"]
["14401 - CUOTAS PARA EL SEGURO DE VIDA DEL PERSONAL"]
["14402 - GASTOS MÉDICOS MAYORES"]
["14403 - APORTACIONES PARA OTROS SEGUROS"]
["15101 - CUOTAS PARA EL FONDO DE AHORRO Y FONDO DE TRABAJO"]
["15201 - INDEMIZACIONES"]
["15301 - PRESTACIONES Y HABERES DE RETIRO"]
["15401 - CANASTA BÁSICA, AYUDA PARA DESPENSA"]
["15402 - AYUDA PARA RENTA Y APOYO DE VIVIENDA"]
["15403 - AYUDA PARA TRANSPORTE"]
["15404 - ONOMÁSTICO, DÍA DEL PADRE Y MADRE"]
["15405 - PRESTACIONES CONTRACTUALES EN EFECTIVO"]
["15406 - CELEBRACIÓN ACORDE A LA PROFESIÓN"]
["15407 - BECAS Y PRESTACIONES RELATIVAS A LOS HIJOS DE TRABAJADORES EN ESPECIE"]
["15408 - PRESTACIONES POR CONCEPTOS DE SALUD"]
["15409 - OTRAS PRESTACIONES DE CARÁCTER GENERAL A LOS TRABAJADORES"]
["15501 - APOYO ESCOLAR"]
["15502 - APOYOS POR ESPECIALIZACIÓN Y CAPACITACIÓN DEL PERSONAL"]
["15901 - DÍAS ECONÓMICOS"]
["15902 - PAGOS POR DEFUNCIÓN"]
["15903 - OTRAS PRESTACIONES ECONÓMICAS Y SOCIALES"]
["16101 - PREVISIONES POR CRECIMIENTO EN PLAZAS"]
["16102 - PREVISIONES POR INCREMENTOS AL SALARIO"]
["16103 - OTRAS MEDIDAS DE CARÁCTER SALARIAL"]
["17101 - ESTÍMULOS POR PRODUCTIVIDAD"]
["17102 - ESTÍMULOS POR PUNTUALIDAD Y ASISTENCIA  MENSUAL"]
["21101 - CONSUMIBLES DE OFICINA"]
["21102 - ÚTILES, ARTÍCULOS Y HERRAMIENTAS MENORES DE OFICINA"]
["21103 - PAPELERÍA"]
["21201 - MATERIALES Y ÚTILES DE IMPRESIÓN Y REPRODUCCIÓN"]
["21301 - MATERIAL ESTADÍSTICO Y GEOGRÁFICO"]
["21401 - MATERIAL DE LIMPIEZA Y MANTENIMIENTO E INSUMOS PARA EQUIPOS DE TECNOLOGÍA DE LA INFORMACIÓN Y COMUNICACIONES"]
["21402 - ÚTILES Y EQUIPOS MENORES DE TECNOLOGÍA DE LA INFORMACIÓN Y COMUNICACIONES"]
["21501 - PUBLICACIONES IMPRESAS"]
["21502 - MATERIAL DE DIFUSIÓN EN MEDIO DIGITAL"]
["21601 - MATERIAL DE LIMPIEZA"]
["21701 - MATERIAL Y ÚTILES DE ENSEÑANZA"]
["21801 - FORMAS VALORADAS Y PAPELERÍA OFICIAL"]
["21803 - OTROS MATERIALES PARA EL REGISTRO E IDENTIFICACIÓN DE BIENES Y PERSONAS"]
["22101 - ALIMENTOS PARA EL PERSONAL INSTITUCIONAL"]
["22102 - ALIMENTACIÓN A PERSONAS EN ATENCIÓN HOSPITALARIA O DE SEGURIDAD SOCIAL"]
["22103 - ALIMENTACIÓN DE PERSONAS CAUTIVAS O EN PROCESO DE READAPTACIÓN SOCIAL"]
["22104 - ALIMENTACIÓN DE PERSONAS POR EL DESARROLLO DE OTROS PROGRAMAS INSTITUCIONALES"]
["22201 - PRODUCTOS ALIMENTICIOS PARA ANIMALES"]
["22301 - UTENSILIOS, MATERIALES Y EQUIPOS MENORES PARA EL SERVICIO DE ALIMENTACIÓN DE PERSONAS"]
["23101 - PRODUCTOS ALIMENTICIOS, AGROPECUARIOS Y FORESTALES ADQUIRIDOS COMO MATERIA PRIMA"]
["23201 - INSUMOS TEXTILES ADQUIRIDOS COMO MATERIA PRIMA"]
["23301 - PRODUCTOS DE PAPEL, CARTÓN E IMPRESOS ADQUIRIDOS COMO MATERIA PRIMA"]
["23401 - COMBUSTIBLES, ADITIVOS, CARBÓN Y SUS DERIVADOS ADQUIRIDOS COMO MATERIA PRIMA"]
["23501 - PRODUCTOS QUÍMICOS, FARMACÉUTICOS Y DE LABORATORIO ADQUIRIDOS COMO MATERIA PRIMA"]
["23601 - PRODUCTOS METALICOS Y A BASE DE MINERALES NO METALICOS ADQUIRIDOS COMO MATERIA PRIMA"]
["23701 - PRODUCTOS DE CUERO, PIEL, PLÁSTICO Y HULE ADQUIRIDOS COMO MATERIA PRIMA"]
["23901 - OTROS PRODUCTOS ADQUIRIDOS COMO MATERIA PRIMA"]
["24101 - PRODUCTOS MINERALES NO METÁLICOS"]
["24201 - CEMENTO Y PRODUCTOS DE CONCRETO"]
["24301 - CAL, YESO Y PRODUCTOS DE YESO"]
["24401 - MADERA Y SUS DERIVADOS EMPLEADOS PARA LA CONSTRUCCIÓN Y REPARACIÓN DE INMUEBLES"]
["24501 - VIDRIO Y PRODUCTOS DE VIDRIO"]
["24601 - MATERIAL ELÉCTRICO Y ELECTRÓNICO"]
["24701 - ARTÍCULOS METÁLICOS PARA LA CONSTRUCCIÓN"]
["24801 - MATERIALES COMPLEMENTARIOS"]
["24901 - OTROS MATERIALES Y ARTÍCULOS DE CONSTRUCCIÓN Y REPARACIÓN"]
["24902 - ARTÍCULOS PLÁSTICOS PARA LA CONSTRUCCIÓN"]
["25101 - PRODUCTOS QUÍMICOS BÁSICOS"]
["25201 - FERTILIZANTES, PESTICIDAS Y OTROS AGROQUÍMICOS"]
["25301 - MEDICINAS Y PRODUCTOS FARMACÉUTICOS DE USO HUMANO"]
["25302 - MEDICINAS Y PRODUCTOS FARMACÉUTICOS DE USO VETERINARIO"]
["25401 - MATERIALES Y SUMINISTROS MÉDICOS"]
["25402 - INSTRUMENTOS MÉDICOS MENORES"]
["25501 - MATERIALES, SUMINISTROS E INSTRUMENTOS MENORES DE LABORATORIO"]
["25601 - FIBRAS SINTÉTICAS, HULES, PLÁSTICOS Y DERIVADOS"]
["25901 - OTROS PRODUCTOS QUÍMICOS"]
["26101 - COMBUSTIBLE "]
["26102 - LUBRICANTES Y ADITIVOS"]
["27101 - VESTUARIOS Y UNIFORMES"]
["27201 - PRENDAS DE SEGURIDAD Y PROTECCIÓN PERSONAL"]
["27301 - ARTÍCULOS DEPORTIVOS"]
["27401 - PRODUCTOS TEXTILES"]
["27501 - BLANCOS Y OTROS PRODUCTOS TEXTILES, EXCEPTO PRENDAS DE VESTIR"]
["28201 - MATERIALES DE SEGURIDAD PÚBLICA"]
["28301 - PRENDAS DE PROTECCIÓN PARA SEGURIDAD PÚBLICA"]
["29101 - HERRAMIENTAS MENORES"]
["29201 - REFACCIONES Y ACCESORIOS MENORES DE EDIFICIOS"]
["29301 - REFACCIONES Y ACCESORIOS MENORES DE MOBILIARIO Y EQUIPO DE ADMINISTRACIÓN, EDUCACIONAL Y RECREATIVO"]
["29401 - REFACCIONES Y ACCESORIOS MENORES DE EQUIPO DE CÓMPUTO Y TECNOLOGÍAS DE LA INFORMACIÓN"]
["29501 - REFACCIONES Y ACCESORIOS MENORES DE INSTRUMENTAL MÉDICO Y DE LABORATORIO"]
["29601 - REFACCIONES Y ACCESORIOS MENORES DE EQUIPO DE TRANSPORTE"]
["29701 - REFACCIONES Y ACCESORIOS MENORES DE EQUIPO DE DEFENSA Y SEGURIDAD"]
["29801 - REFACCIONES Y ACCESORIOS MENORES DE MAQUINARIA Y OTROS EQUIPOS"]
["29901 - OTRAS REFACCIONES Y ACCESORIOS MENORES"]
["29902 - OTRAS REFACCIONES Y ACCESORIOS CONTINGENTES"]
["31101 - ENERGÍA ELÉCTRICA"]
["31201 - GAS"]
["31301 - AGUA"]
["31401 - TELEFONÍA TRADICIONAL"]
["31501 - TELEFONÍA CELULAR"]
["31601 - SERVICIO DE TELECOMUNICACIÓN  Y SATÉLITES"]
["31701 - SERVICIO DE INTERNET Y REDES"]
["31702 - SERVICIO DE PROCESAMIENTO DE INFORMACIÓN"]
["31801 - SERVICIOS POSTALES Y TELEGRÁFICOS"]
["31901 - SERVICIOS INTEGRALES Y OTROS SERVICIOS"]
["32101 - ARRENDAMIENTO DE TERRENOS"]
["32201 - ARRENDAMIENTO DE EDIFICIOS"]
["32301 - ARRENDAMIENTO DE MOBILIARIO Y EQUIPO DE ADMINISTRACIÓN, EDUCACIONAL Y RECREATIVO"]
["32302 - ARRENDAMIENTO DE EQUIPOS Y BIENES DE TECNOLOGÍA DE LA INFORMACIÓN"]
["32401 - ARRENDAMIENTO DE EQUIPO E INSTRUMENTAL MÉDICO Y DE LABORATORIO"]
["32501 - ARRENDAMIENTO DE EQUIPO DE TRANSPORTE"]
["32601 - ARRENDAMIENTO DE MAQUINARIA, OTROS EQUIPOS Y HERRAMIENTAS"]
["32701 - ARRENDAMIENTO DE  MARCAS Y PATENTES"]
["32702 - ARRENDAMIENTO DE LICENCIAS DE PROGRAMAS DE CÓMPUTO"]
["32801 - ARRENDAMIENTO FINANCIERO"]
["32901 - OTROS ARRENDAMIENTOS"]
["32902 - ARRENDAMIENTO DE EQUIPO Y BIENES DE TECNOLOGÍA DE LA INFORMACIÓN"]
["33101 - SERVICIOS LEGALES, DE CONTABILIDAD, AUDITORÍA Y RELACIONADOS"]
["33201 - SERVICIOS DE DISEÑO, ARQUITECTURA, INGENIERÍA Y ACTIVIDADES RELACIONADAS"]
["33301 - SERVICIOS DE CONSULTORÍA ADMINISTRATIVA, PROCESOS, TÉCNICA Y EN TECNOLOGÍAS DE LA INFORMACIÓN"]
["33401 - SERVICIOS DE CAPACITACIÓN"]
["33501 - SERVICIOS DE INVESTIGACIÓN CIENTÍFICA Y DESARROLLO"]
["33601 - SERVICIOS DE APOYO ADMINISTRATIVO Y SECRETARIAL"]
["33602 - SERVICIOS EXTERNOS DE TRADUCCION Y TRANSCRIPCIÓN"]
["33603 - SERVICIOS DE  ELABORACIÓN E IMPRESIÓN DE DOCUMENTOS"]
["33701 - SERVICIOS DE PROTECCIÓN Y SEGURIDAD"]
["33801 - SERVICIOS DE VIGILANCIA"]
["33901 - SERVICIOS PROFESIONALES, CIENTÍFICOS Y TÉCNICOS INTEGRALES"]
["34101 - SERVICIOS FINANCIEROS Y BANCARIOS"]
["34201 - SERVICIOS DE COBRANZA, INVESTIGACIÓN CREDITICIA Y SIMILAR"]
["34301 - SERVICIOS DE RECAUDACIÓN, TRASLADO Y CUSTODIA DE VALORES"]
["34401 - SEGUROS DE RESPONSABILIDAD PATRIMONIAL Y FIANZAS"]
["34501 - SEGURO DE BIENES PATRIMONIALES"]
["34601 - ALMACENAJE, EMABALAJE Y ENVASE"]
["34701 - FLETES Y MANIOBRAS"]
["34801 - COMISIONES POR VENTAS"]
["34901 - OTROS SERVICIOS FINANCIEROS Y BANCARIOS"]
["34902 - OTROS SERVICIOS COMERCIALES INTEGRALES"]
["35101 - CONSERVACIÓN Y MANTENIMIENTO MENOR DE INMUEBLES"]
["35201 - INSTALACIÓN, REPARACIÓN Y MANTENIMIENTO DE MOBILIARIO Y EQUIPO DE ADMINISTRACIÓN, EDUCACIONAL Y RECREATIVO"]
["35301 - INSTALACIÓN, REPARACIÓN Y MANTENIMIENTO DE EQUIPO DE COMPUTO Y TECNOLOGÍA DE LA INFORMACIÓN"]
["35401 - INSTALACIÓN, REPARACIÓN Y MANTENIMIENTO DE EQUIPO E INSTRUMENTAL MÉDICO Y DE LABORATORIO"]
["35501 - REPARACIÓN Y MANTENIMIENTO DE EQUIPO DE TRANSPORTE"]
["35601 - REPARACIÓN Y MANTENIMIENTO DE EQUIPO DE DEFENSA Y SEGURIDAD"]
["35701 - INSTALACIÓN, REPARACIÓN Y MANTENIMIENTO DE MAQUINARIA, OTROS EQUIPOS Y HERRAMIENTAS"]
["35801 - SERVICIOS DE LIMPIEZA Y MANEJO DE DESECHOS"]
["35901 - SERVICIOS DE JARDINERÍA Y FUMIGACIÓN"]
["36101 - DIFUSIÓN POR RADIO, TELEVISIÓN Y OTROS MEDIOS DE MENSAJES SOBRE PROGRAMAS Y ACTIVIDADES GUBERNAMENTALES"]
["36102 - ESTUDIOS DE EVALUACIÓN Y DIFUSIÓN SOBRE PROGRAMAS Y CAMPAÑAS GUBERNAMENTALES"]
["36103 - DIFUSIÓN DE PROGRAMAS Y ACTIVIDADES GUBERNAMENTALES EN PUBLICACIONES IMPRESAS"]
["36104 - DIFUSIÓN DE PROGRAMAS Y ACTIVIDADES GUBERNAMENTALES A TRAVÉS DE OTROS MEDIOS DE COMUNICACIÓN"]
["36201 - SERVICIOS DE DIFUSIÓN PARA LA COMERCIALIZACIÓN DE BIENES O SERVICIOS"]
["36202 - ARTÍCULOS PROMOCIONALES"]
["36203 - ESTUDIOS Y EVALUACIÓN DE CAMPAÑAS COMERCIALES"]
["36301 - SERVICIOS DE CREATIVIDAD, PREPRODUCCIÓN Y PRODUCCIÓN DE PUBLICIDAD, EXCEPTO INTERNET"]
["36401 - SERVICIOS DE REVELADO O IMPRESIÓN DE FOTOGRAFÍAS"]
["36501 - SERVICIOS PARA LA INDUSTRIA FÍLMICA, DEL SONIDO Y DEL VIDEO"]
["36601 - SERVICIO DE CREACIÓN Y DIFUSIÓN DE CONTENIDO EXCLUSIVAMENTE A TRAVÉS DE INTERNET"]
["36901 - OTROS SERVICIOS DE INFORMACIÓN"]
["37101 - PASAJES AÉREOS NACIONALES"]
["37102 - PASAJES AÉREOS INTERNACIONALES"]
["37201 - PASAJES TERRESTRES NACIONALES"]
["37202 - PASAJES TERRESTRES INTERNACIONALES"]
["37301 - PASAJES MARÍTIMOS, LACUSTRES Y FLUVIALES NACIONALES"]
["37302 - PASAJES MARÍTIMOS, LACUSTRES Y FLUVIALES INTERNACIONALES"]
["37401 - AUTOTRANSPORTE GENERAL"]
["37402 - AUTOTRANSPORTE ESPECIALIZADO"]
["37501 - VIÁTICOS EN EL PAÍS"]
["37601 - VIÁTICOS EN EL EXTRANJERO"]
["37701 - GASTOS DE INSTALACIÓN Y TRASLADO DE MENAJE"]
["37801 - SERVICIOS INTEGRALES DE TRASLADO Y VIÁTICOS"]
["37901 - OTROS SERVICIOS DE TRASLADO Y HOSPEDAJE"]
["38101 - GASTOS DE CEREMONIAL"]
["38201 - GASTOS DE ORDEN SOCIAL Y CULTURAL"]
["38301 - CONGRESOS Y CONVENCIONES"]
["38401 - EXPOSICIONES"]
["38501 - GASTOS DE REPRESENTACIÓN"]
["39101 - SERVICIOS FUNERARIOS Y DE CEMENTERIOS"]
["39201 - IMPUESTOS Y DERECHOS"]
["39301 - IMPUESTOS Y DERECHOS DE IMPORTACIÓN"]
["39401 - SENTENCIAS Y RESOLUCIONES POR AUTORIDAD COMPETENTE"]
["39501 - PENAS, MULTAS, ACCESORIOS Y ACTUALIZACIONES"]
["39601 - OTROS GASTOS POR RESPONSABILIDADES"]
["39701 - UTILIDADES"]
["39801 - IMPUESTO SOBRE NÓMINAS (3%)"]
["39802 - OTROS IMPUESTOS DERIVADOS DE UNA RELACIÓN LABORAL"]
["39901 - OTROS SERVICIOS GENERALES"]
["39902 - TRANSPORTACIÓN POR ATENCIÓN A TERCEROS"]
["39903 - HOSPEDAJE POR ATENCIÓN A TERCEROS"]
["39904 - ALIMENTACIÓN POR ATENCIÓN A TERCEROS"]
["39905 - OTROS SERVICIOS GENERALES CONTINGENTES"]
["41101 - ASIGNACIONES PRESUPUESTARIAS RELATIVAS AL CAPÍTULO 6000"]
["41102 - ASIGNACIONES PRESUPUESTARIAS PARA GASTO CORRIENTE"]
["41501 - TRANSFERENCIAS PRESUPUESTARIAS RELATIVAS AL CAPÍTULO 1000"]
["41503 - TRANSFERENCIAS PRESUPUESTARIAS RELATIVAS AL CAPÍTULO 3000"]
["41504 - TRANSFERENCIAS PRESUPUESTARIAS RELATIVAS AL CAPÍTULO 4000"]
["41702 - TRANSFERENCIAS PRESUPUESTARIAS RELATIVAS AL CAPÍTULO 2000"]
["41703 - TRANSFERENCIAS PRESUPUESTARIAS RELATIVAS AL CAPÍTULO 3000"]
["41704 - TRANSFERENCIAS PRESUPUESTARIAS RELATIVAS AL CAPÍTULO 4000"]
["42401 - TRANSFERENCIAS OTORGADAS A ENTIDADES FEDERATIVAS Y MUNICIPIOS PARA GASTO CORRIENTE"]
["43101 - SUBSIDIOS A LA PRODUCCIÓN"]
["43401 - SUBSIDIOS A LA PRESTACIÓN DE SERVICIOS PÚBLICOS"]
["43601 - SUBSIDIOS A LA VIVIENDA"]
["43901 - OTROS SUBSIDIOS"]
["44101 - AYUDAS SOCIALES A PERSONAS"]
["44102 - PREMIOS Y RECOMPENSAS A GANADORES DE CONCURSOS"]
["44103 - OTRAS AYUDAS DIVERSAS"]
["44201 - BECAS Y OTRAS AYUDAS PARA PROGRAMAS DE CAPACITACIÓN"]
["44301 - AYUDAS SOCIALES A INSTITUCIONES DE ENSEÑANZA"]
["44401 - AYUDAS SOCIALES A ACTIVIDADES CIENTÍFICAS O ACADEMICAS"]
["44501 - AYUDAS SOCIALES A INSTITUCIONES SIN FINES DE LUCRO"]
["44601 - AYUDAS SOCIALES A COOPERATIVAS"]
["44701 - AYUDAS SOCIALES A ENTIDADES DE INTERÉS PÚBLICO"]
["44801 - AYUDAS POR DESASTRES NATURALES Y OTROS SINIESTROS"]
["45901 - OTRAS PENSIONES Y JUBILACIONES"]
["48101 - DONATIVOS A INSTITUCIONES SIN FINES DE LUCRO"]
["48201 - DONATIVOS A ENTIDADES FEDERATIVAS O MUNICIPIOS"]
["51101 - MUEBLES DE OFICINA"]
["51102 - ANAQUELES Y ESTANTERÍA"]
["51201 - MUEBLES EXCEPTO DE OFICINA Y ESTANTERÍA"]
["51301 - BIENES ARTISTICOS Y CULTURALES"]
["51401 - OBJETOS DE VALOR"]
["51501 - EQUIPO DE CÓMPUTO Y DE TECNOLOGÍA DE LA INFORMACIÓN"]
["51502 - REFACCIONES Y ACCESORIOS MAYORES PARA EQUIPO DE CÓMPUTO Y DE TECNOLOGÍA DE LA INFORMACIÓN"]
["51901 - MOBILIARIO Y EQUIPO PARA EL DESARROLLO DE ACTIVIDADES PRODUCTIVAS Y ADMINISTRATIVAS"]
["51902 - LÍNEA BLANCA Y ELECTRODOMÉSTICOS MAYORES"]
["51903 - EQUIPOS DE SEGURIDAD PARA INMUEBLES"]
["52101 - EQUIPOS Y APARATOS DE PROYECCIÓN DE IMÁGENES, AUDIO Y VIDEO"]
["52201 - APARATOS DEPORTIVOS"]
["52301 - CÁMARAS FOTOGRÁFICAS Y DE VIDEO"]
["52901 - OTRO MOBILIARIO Y EQUIPO EDUCACIONAL"]
["52902 - OTRO MOBILIARIO Y EQUIPO RECREATIVO"]
["53101 - EQUIPO MÉDICO Y DE LABORATORIO"]
["53201 - INSTRUMENTAL MÉDICO Y DE LABORATORIO"]
["54101 - AUTOMÓVILES Y CAMIONES DE TRANSPORTE DE PERSONAS"]
["54102 - CAMIONES Y TRACTOCAMIONES DE CARGA"]
["54201 - REMOLQUES"]
["54202 - CARROCERÍAS"]
["54902 REFACCIONES MAYORES PARA EQUIPO DE TRANSPORTE"]
["55101 - MAQUINARIA PARA DEFENSA Y SEGURIDAD"]
["55102 - EQUIPO PARA DEFENSA Y SEGURIDAD"]
["56101 - MAQUINARIA Y EQUIPO AGROPECUARIO"]
["56201 - MAQUINARIA Y EQUIPO INDUSTRIAL"]
["56202 - ACCESORIOS MAYORES PARA MAQUINARIA Y EQUIPO INDUSTRIAL"]
["56203 - REFACCIONES MAYORES PARA MAQUINARIA Y EQUIPO INDUSTRIAL"]
["56301 - MAQUINARIA Y EQUIPO DE CONSTRUCCIÓN"]
["56401 - SISTEMAS DE AIRE ACONDICIONADO, CALEFACCIÓN Y DE REFRIGERACIÓN INDUSTRIAL Y COMERCIAL"]
["56501 - EQUIPO DE COMUNICACIÓN  Y TELECOMUNICACIÓN"]
["56601 - EQUIPOS DE GENERACIÓN ELÉCTRICA Y APARATOS ELÉCTRICOS"]
["56602 - ACCESORIOS MAYORES PARA EQUIPOS DE GENERACIÓN ELÉCTRICA Y APARATOS ELÉCTRICOS"]
["56701 - HERRAMIENTAS Y MÁQUINAS-HERRAMIENTA"]
["56901 - OTROS EQUIPOS"]
["57301 - AVES"]
["58901 - ADJUDICACIONES, EXPROPIACIONES E INDEMNIZACIONES DE INMUEBLES"]
["59101 - SOFTWARE"]
["59701 - LICENCIAS INFORMÁTICAS E INTELECTUALES"]
["59901 - OTROS ACTIVOS INTAGIBLES"]
["61201 - ESTUDIOS Y PROYECTOS DE EDIFICACIONES NO HABITACIONALES"]
["61202 - OBRA DE EDIFICACIONES DE USO NO HABITACIONAL"]
["61302 - OBRAS DE ABASTECIMIENTO"]
["61402 - OBRAS DE URBANIZACIÓN"]
["61702 - EQUIPAMIENTO E INSTALACIONES"]
["62201 - ESTUDIOS Y PROYECTOS DE EDIFICACIONES NO HABITACIONALES"]
["62202 - OBRA DE EDIFICACIONES DE USO NO HABITACIONAL"]
["62401 - ESTUDIOS Y PROYECTOS DE OBRA DE URBANIZACIÓN "]
["62602 - OBRA PESADA O DE INGENIERÍA CIVIL"]
["74503 - OTROS PRÉSTAMOS"]
["75101 - INVERSIÓNES EN FIDECOMISOS DEL PODER EJECUTIVO"]
["79101 - CONTINGENCIAS POR FENÓMENOS NATURALES"]
["81101 - FONDO GENERAL DE PARTICIPACIONES TRANSFERIDO A MUNICIPIOS DEL ESTADO"]
["81201 - FONDO DE FOMENTO MUNICIPAL TRANSFERIDO A LOS MUNICIPIOS DEL ESTADO"]
["81301 - PARTICIPACIONES DE LAS ENTIDADES FEDERATIVAS A LOS MUNICIPIOS"]
["81501 - OTROS CONCEPTOS PARTICIPABLES DE LA FEDERACIÓN A MUNICIPIOS"]
["81502 - FONDO DE FISCALIZACIÓN "]
["81601 - CONVENIOS DE COLABORACIÓN ADMINISTRATIVA"]
["83301 - APORTACIONES DE LAS ENTIDADES FEDERATIVAS A LOS MUNICIPIOS"]
["91101 - AMORTIZACIÓN DE LA DEUDA INTERNA CON INSTITUCIONES DE CRÉDITO A LARGO PLAZO"]
["92101 - INTERESES DE LA DEUDA INTERNA CON INSTITUCIONES DE CRÉDITO"]
["93101 - COMISIONES DE LA DEUDA PÚBLICA NACIONAL"]
["94101 - GASTOS DE LA DEUDA PÚBLICA INTERNA"]
["95101 - PAGOS POR COBERTURAS"]
["99102 - ADEFAS DE CAPÍTULO 2000"]
["99103 - ADEFAS DE CAPÍTULO 3000"]
["99105 - ADEFAS DE CAPÍTULO 5000"]
["99106 - ADEFAS DE CAPÍTULO 6000"]
[]
[]
[]
[]
[]
[]
[null,null,null,null,null,null,null,null,null," "," "]
[null,null,null,null,null,null,null,null,null,"DIRECCIÓN DE ADMINISTRACIÓN Y FINANZAS ",1404]
[null,null,null,null,null,null,null,null,null,"ORGANO INTERNO DE CONTROL",1407]
[null,null,null,null,null,null,null,null,null,"DIRECCIÓN DE DIVISIÓN DE GASTRONOMÍA ",3409]
[null,null,null,null,null,null,null,null,null,"DIRECCIÓN DE DIVISIÓN ECONÓMICO ADMINISTRATIVO ",3407]
[null,null,null,null,null,null,null,null,null,"DIRECCIÓN DE DIVISIÓN TURISMO ",3406]
[null,null,null,null,null,null,null,null,null,"DIRECCIÓN DE DIVISIÓN DE INGENIERÍA Y TECNOLOGÍA ",3408]
[null,null,null,null,null,null,null,null,null,"DIRECCIÓN DE EXTENSIÓN UNIVERSITARIA Y SERVICIOS ESTUDIANTILES ",1403]
[null,null,null,null,null,null,null,null,null,"DIRECCIÓN DE INNOVACIÓN ",3410]
[null,null,null,null,null,null,null,null,null,"DIRECCIÓN DE PLANEACIÓN, PRESUPUESTO, PROGRAMACIÓN, EVALUACIÓN Y UNIDAD DE TRANSPARENCIA, ACCESO A LA INFORMACIÓN PÚBLICA Y PROTECCIÓN DE DATOS PERSONALES\n",1406]
[null,null,null,null,null,null,null,null,null,"DESPACHO DE LA RECTORÍA",1101]
[null,null,null,null,null,null,null,null,null,"DIRECCIÓN JURÍDICA ",1405]
[null,null,null,null,null,null,null,null,null,"SECRETARÍA ACADÉMICA ",3302]
[null,null,null,null,null,null,null,null,null,"SECRETARÍA DE VINCULACIÓN ",3303]